{"text_format":"1","workbook":"xlsx","n_sheets":5,"sheets":["Assignment","format","Employee_data","5.ID","Sheet9"],"not_rendered":{"charts":0,"images":0,"macros":1,"external_links":0,"defined_names":0,"comments":0,"pivot_tables":0},"unopened":[],"bounds":{"document_bytes":16777216,"sheet_cells":100000,"rows_first":2000,"rows_last":500,"rows_between":2000,"halvings":0,"cell_chars":16384,"cell_head_chars":4096},"cells_cut":0,"cells_raw":0,"read":"whole","date_system":"1900"}

{"sheet":"Assignment","index":0,"n_rows":34,"n_cols":1,"rows_kept":34,"cut":false,"hidden":false,"merged":[]}
["We are now going to look at the same problem from the last module, but now based on Decision Making under Risk.   As a review:"]
["Luna was trying to decide between:"]
["(1)    Sell the product to another company and move to the beach,"]
["(2)    Hire SBPR to market and distribute the product,"]
["(3)    Market the product herself and sell on Amazon."]
[]
["Selling the product to another company, she can sell it for $45,000."]
["If she chooses to hire SBPR to market and distribute the product, her payoff will depend on the economic environment (or states of nature). If the economy is “good”, then the estimated payoff to Luna is $85,000. “Moderate” economy is estimated to have a payoff of 60,000. “Bad” economy is estimated to have a payoff of $35,000 and if there is “Financial Crisis”, Luna would lose $500."]
["If she chooses to market the product herself and sell on Amazon, her payoffs are as follows: If there is “good” economy, she estimates a payoff to be $100,000. “Moderate” economy is estimated to have a payoff of $70,000. “Bad” economy is estimated to have a payoff of $40,000 and “Financial Crisis “would cost Luna $15,000."]
["New information:  Jason, an economist friend has done research on the future economic environment and has determined that there is 30% chance of good economy, a 45% chance of moderate economy, a 20% chance of bad economy, and 5% chance of financial crisis."]
["Questions:"]
["1)      What is the expected payoff if Luna choose to hire SBPR to market and distribute the product?"]
[59475]
["2)      What is the value of EVUPI."]
[72750]
["3)      What is the vaue of EVPI?"]
[4000]
["4)      What is the value of the Expected Opportunity Loss(EOL)?"]
[4000]
[]
["Questions on new Excel functions, based on Employee_data sheet"]
["Using the functions introduced in this module, answer the following questions."]
["5)   What is the difference between the Today and Now function?"]
["Now function  returns current date and time  as date/time value while today function returns  current date as  date/time  value "]
["6)    What is the total years at the company for those in the Research & Development department?"]
[6863]
["7)     How many people are  in the Research & Development department?"]
[961]
["8)    What is the average salary for a Laboratory Technician?"]
[6072.44]
["9)    What is the highest number of years at the company for the Reseach and Development Department?"]
[40]
["10)   What is the lowest hourly rate for a Laboratory Techician?"]
[30]

{"sheet":"format","index":1,"n_rows":40,"n_cols":8,"rows_kept":40,"cut":false,"hidden":false,"merged":[[15,0,16,1],[18,1,18,3],[26,1,26,3],[34,1,34,3],[1,1,1,3],[9,1,9,3]]}
["Payoff table"]
[null,"State of Nature"]
["Decision Alternatives","Good Economy","Moderate Economy","Bad Economy","Financial Crisis"]
["Sell to another company",45000,45000,45000,45000]
["Hire SBPR to market and distribute the product",85000,60000,35000,-500]
["Market the product herself and sell on Amazon,",100000,70000,40000,-15000]
[null,null,null," "]
[]
["Minimax Regret "]
["Regret table","State of Nature"]
["Decision Alternatives",{"$f":"B3","v":"Good Economy"},{"$f":"C3","v":"Moderate Economy"},"Bad Economy",{"$f":"E3","v":"Financial Crisis"},"Max Regret Value","Min"]
[{"$f":"A4","v":"Sell to another company"},{"$f":"MAX(B4:B6)-B4","v":55000},{"$f":"MAX(C4:C6)-C4","v":25000},{"$f":"MAX(D4:D6)-D4","v":0},{"$f":"MAX(E4:E6)-E4","v":0},{"$f":"MAX(B12:E12)","v":55000},{"$f":"MIN(F12:F12:F14)","v":45500}]
[{"$f":"A5","v":"Hire SBPR to market and distribute the product"},{"$f":"MAX(B4:B6)-B5","v":15000},{"$f":"MAX(C4:C6)-C5","v":10000},{"$f":"MAX(D4:D6)-D5","v":10000},{"$f":"MAX(E4:E6)-E5","v":45500},{"$f":"MAX(B13:E13)","v":45500}]
["Market the product herself and sell on Amazon,",{"$f":"MAX(B4:B6)-B6","v":0},{"$f":"MAX(C4:C6)-C6","v":0},{"$f":"MAX(D4:D6)-D6","v":5000},{"$f":"MAX(E4:E6)-E6","v":60000},60000]
[]
["DM under Risk"]
[]
["EVUII"]
[null,"State of Nature"]
[null,{"$f":"B11","v":"Good Economy"},{"$f":"C11","v":"Moderate Economy"},"Bad Economy",{"$f":"E11","v":"Financial Crisis"},"Expected Value"]
["Probability",0.3,0.45,0.2,0.05]
[{"$f":"A12","v":"Sell to another company"},{"$f":"B4","v":45000},{"$f":"C4","v":45000},45000,45000,{"$f":"SUMPRODUCT(B22:E22*B21:E21)","v":45000}]
[{"$f":"A13","v":"Hire SBPR to market and distribute the product"},{"$f":"B5","v":85000},60000,35000,-500,{"$f":"SUMPRODUCT(B23:E23*B21:E21)","v":59475}]
["Market the product herself and sell on Amazon,",100000,70000,40000,-15000,{"$f":"SUMPRODUCT(B24:E24*B21:E21)","v":68750}]
[]
["EVUPI"]
[null,"State of Nature"]
[null,{"$f":"B20","v":"Good Economy"},{"$f":"C20","v":"Moderate Economy"},"Bad Economy",{"$f":"E11","v":"Financial Crisis"},"Expected value"]
["Probability",0.3,0.45,0.2,0.05]
["Payoff",{"$f":"MAX(B4:B6)","v":100000},{"$f":"MAX(C4:C6)","v":70000},45000,45000,{"$f":"SUMPRODUCT(B30:E30*B29:E29)","v":72750}]
[]
["EVPI",{"$f":"F30-F24","v":4000}]
[]
["EOL",null,null,null,null,null,null," "]
["Regret Table","State of Nature"]
["Decision Alternatives",{"$f":"B28","v":"Good Economy"},{"$f":"C28","v":"Moderate Economy"},"Bad Economy",{"$f":"E20","v":"Financial Crisis"},"EOL"]
["Probability",0.3,0.45,0.2,0.05]
[{"$f":"A22","v":"Sell to another company"},{"$f":"B12","v":55000},{"$f":"C12","v":25000},0,0,{"$f":"SUMPRODUCT(B38:E38*B37:E37)","v":27750}]
[{"$f":"A23","v":"Hire SBPR to market and distribute the product"},{"$f":"B13","v":15000},10000,10000,45500,{"$f":"SUMPRODUCT(B39:E39*B37:E37)","v":13275}]
["Market the product herself and sell on Amazon,",0,0,{"$f":"D14","v":5000},60000,{"$f":"SUMPRODUCT(B40:E40*B37:E37)","v":4000}]

{"sheet":"Employee_data","index":2,"n_rows":1471,"n_cols":17,"rows_kept":1471,"cut":false,"hidden":false,"merged":[]}
["Age","Department","Education","Gender","HourlyRate","Job Level","JobRole","Job Satisfaction","Monthly Income","PerformanceRating","Total Working Years","Years At Company","Andrice"]
[41,"Human Resources",2,"Female",94,2,"Healthcare Representative",4,5993,3,8,6,"Spring 2020"]
[49,"Human Resources",1,"Male",61,2,"Healthcare Representative",2,5130,4,10,10,null,"number of years for R&D = ",null,null,{"$f":"SUM(L65:L1025)","v":6863}]
[37,"Human Resources",2,"Male",92,1,"Healthcare Representative",3,2090,3,7,0]
[33,"Human Resources",4,"Female",56,1,"Healthcare Representative",3,2909,3,8,8]
[27,"Human Resources",1,"Male",40,1,"Healthcare Representative",2,3468,3,6,2,null," ",{"$f":"MIN(E185:E443)","v":30}]
[32,"Human Resources",2,"Male",79,1,"Healthcare Representative",4,3068,3,8,7]
[59,"Human Resources",3,"Female",81,1,"Healthcare Representative",1,2670,4,12,1]
[30,"Human Resources",1,"Male",67,1,"Healthcare Representative",3,2693,4,1,1]
[38,"Human Resources",3,"Male",44,3,"Healthcare Representative",3,9526,4,10,9]
[36,"Human Resources",3,"Male",94,2,"Healthcare Representative",3,5237,3,17,7]
[35,"Human Resources",3,"Male",84,1,"Healthcare Representative",2,2426,3,6,5]
[29,"Human Resources",2,"Female",49,2,"Healthcare Representative",3,4193,3,10,9]
[31,"Human Resources",1,"Male",31,1,"Healthcare Representative",3,2911,3,5,5]
[34,"Human Resources",2,"Male",93,1,"Healthcare Representative",4,2661,3,3,2]
[28,"Human Resources",3,"Male",50,1,"Healthcare Representative",3,2028,3,6,4]
[29,"Human Resources",4,"Female",51,3,"Healthcare Representative",1,9980,3,10,10]
[32,"Human Resources",2,"Male",80,1,"Healthcare Representative",2,3298,3,7,6]
[22,"Human Resources",2,"Male",96,1,"Healthcare Representative",4,2935,3,1,1]
[53,"Human Resources",4,"Female",78,4,"Healthcare Representative",4,15427,3,31,25]
[38,"Human Resources",3,"Male",45,1,"Healthcare Representative",4,3944,3,6,3]
[24,"Human Resources",2,"Female",96,2,"Healthcare Representative",3,4011,3,5,4]
[36,"Human Resources",4,"Male",82,1,"Healthcare Representative",1,3407,4,10,5]
[34,"Human Resources",4,"Female",53,3,"Healthcare Representative",2,11994,3,13,12]
[21,"Human Resources",2,"Male",96,1,"Healthcare Representative",4,1232,3,0,0]
[34,"Human Resources",1,"Male",83,1,"Healthcare Representative",1,2960,3,8,4]
[53,"Human Resources",3,"Female",58,5,"Healthcare Representative",3,19094,3,26,14]
[32,"Human Resources",1,"Female",72,1,"Healthcare Representative",1,3919,4,10,10,null,null,{"$f":"AVERAGE(I185:I443)","v":6972.4440154440153}]
[42,"Human Resources",4,"Male",48,2,"Healthcare Representative",2,6825,3,10,9]
[44,"Human Resources",4,"Female",42,3,"Healthcare Representative",4,10248,3,24,22]
[46,"Human Resources",4,"Female",83,5,"Healthcare Representative",1,18947,3,22,2]
[33,"Human Resources",3,"Male",78,1,"Healthcare Representative",4,2496,3,7,1]
[44,"Human Resources",4,"Male",41,2,"Healthcare Representative",4,6465,3,9,4]
[30,"Human Resources",2,"Male",83,1,"Healthcare Representative",3,2206,3,10,10]
[39,"Human Resources",3,"Male",56,2,"Healthcare Representative",4,2086,3,19,1]
[24,"Human Resources",3,"Male",61,1,"Healthcare Representative",4,2293,3,6,2]
[43,"Human Resources",2,"Female",72,1,"Healthcare Representative",3,2645,3,6,5]
[50,"Human Resources",2,"Male",86,1,"Healthcare Representative",3,2683,3,3,3]
[35,"Human Resources",3,"Female",97,1,"Healthcare Representative",4,2014,3,2,2]
[36,"Human Resources",4,"Female",82,1,"Healthcare Representative",1,3419,3,6,1]
[33,"Human Resources",3,"Female",42,2,"Healthcare Representative",1,5376,3,10,5]
[35,"Human Resources",2,"Male",75,1,"Healthcare Representative",4,1951,3,1,1]
[27,"Human Resources",4,"Female",33,1,"Healthcare Representative",1,2341,3,1,1]
[26,"Human Resources",3,"Male",48,1,"Healthcare Representative",3,2293,3,1,1]
[27,"Human Resources",3,"Male",37,3,"Healthcare Representative",3,8726,3,9,9]
[30,"Human Resources",2,"Female",58,2,"Healthcare Representative",4,4011,4,12,12]
[41,"Human Resources",3,"Female",49,5,"Healthcare Representative",3,19545,3,23,22]
[34,"Human Resources",4,"Male",72,2,"Healthcare Representative",3,4568,4,10,9]
[37,"Human Resources",2,"Male",73,1,"Healthcare Representative",2,3022,4,8,1]
[46,"Human Resources",4,"Male",98,2,"Healthcare Representative",4,5772,4,14,9]
[35,"Human Resources",1,"Male",36,1,"Healthcare Representative",4,2269,3,1,1]
[48,"Human Resources",2,"Male",98,3,"Healthcare Representative",3,5381,3,23,1]
[28,"Human Resources",4,"Male",50,1,"Healthcare Representative",3,3441,3,2,2]
[44,"Human Resources",5,"Female",75,2,"Healthcare Representative",1,5454,4,9,4]
[35,"Human Resources",2,"Male",79,3,"Healthcare Representative",1,9884,3,10,4]
[26,"Human Resources",3,"Female",47,2,"Healthcare Representative",4,4157,3,5,2]
[33,"Human Resources",2,"Female",98,3,"Healthcare Representative",4,13458,3,15,15]
[35,"Human Resources",5,"Male",71,3,"Healthcare Representative",1,9069,4,9,9]
[35,"Human Resources",4,"Female",30,1,"Healthcare Representative",1,4014,3,4,2]
[31,"Human Resources",4,"Male",48,2,"Healthcare Representative",4,5915,4,10,7]
[37,"Human Resources",4,"Male",51,2,"Healthcare Representative",3,5993,3,7,7]
[32,"Human Resources",3,"Male",33,2,"Healthcare Representative",4,6162,4,9,9]
[38,"Human Resources",5,"Female",50,2,"Healthcare Representative",4,2406,3,10,10]
[50,"Human Resources",2,"Female",43,5,"Healthcare Representative",3,18740,3,29,27,null,null,{"$f":"MAX(L65:L1025)","v":40}]
[59,"Research & Development",3,"Female",99,3,"Healthcare Representative",1,7637,3,28,21]
[36,"Research & Development",3,"Female",59,3,"Healthcare Representative",3,10096,3,17,17]
[55,"Research & Development",3,"Female",33,4,"Healthcare Representative",3,14756,3,21,5]
[36,"Research & Development",3,"Male",95,2,"Healthcare Representative",2,6499,3,6,6]
[45,"Research & Development",3,"Male",59,3,"Healthcare Representative",1,9724,3,25,1]
[35,"Research & Development",3,"Male",79,1,"Healthcare Representative",1,2194,3,5,3]
[36,"Research & Development",3,"Male",79,1,"Healthcare Representative",3,3388,3,2,1]
[59,"Research & Development",1,"Female",57,2,"Healthcare Representative",3,5473,3,20,4]
[29,"Research & Development",3,"Male",76,1,"Healthcare Representative",2,2703,4,6,5]
[31,"Research & Development",4,"Male",87,1,"Healthcare Representative",2,2501,3,1,1]
[32,"Research & Development",3,"Male",66,2,"Healthcare Representative",2,6220,3,10,10]
[36,"Research & Development",3,"Female",55,1,"Healthcare Representative",4,3038,3,5,1]
[31,"Research & Development",4,"Female",61,2,"Healthcare Representative",4,4424,4,11,11]
[35,"Research & Development",4,"Male",32,2,"Healthcare Representative",1,4312,3,16,15]
[45,"Research & Development",4,"Male",52,3,"Healthcare Representative",1,13245,3,17,0]
[37,"Research & Development",4,"Male",30,3,"Healthcare Representative",3,13664,3,16,5]
[46,"Research & Development",2,"Male",80,2,"Healthcare Representative",2,5021,4,16,4]
[30,"Research & Development",1,"Male",55,2,"Healthcare Representative",4,5126,3,10,10]
[35,"Research & Development",3,"Male",30,1,"Healthcare Representative",3,2859,3,6,6]
[55,"Research & Development",2,"Male",70,3,"Healthcare Representative",4,10239,3,24,1]
[38,"Research & Development",3,"Female",79,2,"Healthcare Representative",4,5329,3,17,13]
[34,"Research & Development",2,"Male",94,2,"Healthcare Representative",2,4325,3,5,5]
[56,"Research & Development",3,"Male",49,3,"Healthcare Representative",4,7260,3,37,6]
[23,"Research & Development",1,"Male",62,1,"Healthcare Representative",1,2322,3,3,0]
[51,"Research & Development",4,"Male",96,1,"Healthcare Representative",4,2075,4,10,4]
[30,"Research & Development",3,"Male",99,2,"Healthcare Representative",4,4152,3,11,11]
[46,"Research & Development",2,"Male",64,3,"Healthcare Representative",4,9619,3,9,9]
[40,"Research & Development",4,"Male",78,4,"Healthcare Representative",2,13503,4,22,22]
[51,"Research & Development",4,"Male",71,2,"Healthcare Representative",4,5441,4,11,10]
[30,"Research & Development",2,"Female",63,2,"Healthcare Representative",2,5209,3,11,11]
[46,"Research & Development",3,"Male",40,3,"Healthcare Representative",1,10673,3,21,10]
[32,"Research & Development",4,"Male",87,2,"Healthcare Representative",3,5010,3,12,11]
[54,"Research & Development",4,"Female",60,3,"Healthcare Representative",3,13549,3,16,4]
[24,"Research & Development",2,"Female",33,2,"Healthcare Representative",3,4999,4,4,3]
[28,"Research & Development",3,"Male",43,2,"Healthcare Representative",3,4221,3,5,5]
[58,"Research & Development",4,"Male",37,4,"Healthcare Representative",3,13872,3,38,37]
[44,"Research & Development",3,"Male",67,2,"Healthcare Representative",2,2042,3,17,3]
[37,"Research & Development",4,"Male",63,1,"Healthcare Representative",1,2073,4,7,3]
[32,"Research & Development",1,"Male",71,1,"Healthcare Representative",1,2956,3,1,1]
[20,"Research & Development",3,"Female",66,1,"Healthcare Representative",4,2926,3,1,1]
[34,"Research & Development",4,"Female",41,2,"Healthcare Representative",3,4809,3,16,16]
[37,"Research & Development",2,"Male",100,2,"Healthcare Representative",4,5163,3,17,1]
[59,"Research & Development",4,"Female",32,5,"Healthcare Representative",4,18844,4,30,3]
[50,"Research & Development",3,"Female",73,5,"Healthcare Representative",2,18172,3,28,8]
[25,"Research & Development",3,"Male",46,2,"Healthcare Representative",3,5744,3,6,6]
[25,"Research & Development",1,"Male",64,1,"Healthcare Representative",4,2889,3,2,2]
[22,"Research & Development",3,"Female",59,1,"Healthcare Representative",4,2871,3,1,0]
[51,"Research & Development",4,"Female",30,3,"Healthcare Representative",1,7484,4,23,13]
[34,"Research & Development",3,"Male",66,2,"Healthcare Representative",3,6074,4,9,9]
[54,"Research & Development",3,"Female",30,4,"Healthcare Representative",4,17328,3,23,5]
[24,"Research & Development",1,"Male",52,1,"Healthcare Representative",3,2774,3,6,5]
[34,"Research & Development",4,"Female",45,2,"Healthcare Representative",2,4505,3,12,1]
[37,"Research & Development",3,"Male",87,3,"Healthcare Representative",4,7428,3,12,5]
[34,"Research & Development",3,"Female",45,3,"Healthcare Representative",1,11631,3,14,11]
[36,"Research & Development",2,"Female",92,3,"Healthcare Representative",4,9738,3,10,9]
[36,"Research & Development",2,"Female",39,1,"Healthcare Representative",4,2835,4,7,1]
[43,"Research & Development",2,"Male",92,4,"Healthcare Representative",4,16959,3,25,25]
[30,"Research & Development",3,"Male",96,1,"Healthcare Representative",3,2613,4,10,10]
[33,"Research & Development",2,"Male",95,2,"Healthcare Representative",2,6146,3,8,7]
[56,"Research & Development",4,"Female",72,1,"Healthcare Representative",2,4963,3,7,5]
[51,"Research & Development",3,"Male",51,5,"Healthcare Representative",3,19537,3,23,20]
[31,"Research & Development",4,"Male",76,2,"Healthcare Representative",3,6172,3,12,7]
[26,"Research & Development",3,"Female",46,1,"Healthcare Representative",2,2368,3,5,5]
[58,"Research & Development",4,"Female",94,3,"Healthcare Representative",4,10312,3,40,40]
[19,"Research & Development",1,"Male",50,1,"Healthcare Representative",3,1675,3,0,0]
[22,"Research & Development",1,"Male",100,1,"Healthcare Representative",4,2523,3,3,2]
[49,"Research & Development",4,"Female",96,2,"Healthcare Representative",1,6567,3,16,15]
[43,"Research & Development",3,"Female",72,1,"Healthcare Representative",3,4739,3,18,3]
[50,"Research & Development",3,"Female",77,3,"Human Resources",4,9208,3,16,2]
[31,"Research & Development",3,"Female",71,2,"Human Resources",3,4559,3,4,2]
[41,"Research & Development",1,"Male",96,3,"Human Resources",3,8189,3,12,9]
[26,"Research & Development",1,"Female",61,1,"Human Resources",3,2942,4,8,8]
[36,"Research & Development",2,"Male",84,2,"Human Resources",2,4941,4,7,3]
[51,"Research & Development",4,"Male",53,3,"Human Resources",4,10650,3,18,4]
[39,"Research & Development",4,"Female",47,2,"Human Resources",3,5902,3,17,15]
[25,"Research & Development",3,"Male",41,2,"Human Resources",3,8639,3,6,2]
[30,"Research & Development",3,"Male",48,2,"Human Resources",4,6347,3,12,11]
[32,"Research & Development",3,"Female",41,1,"Human Resources",1,4200,4,10,5]
[45,"Research & Development",3,"Male",83,1,"Human Resources",4,3452,3,9,6]
[38,"Research & Development",5,"Female",32,2,"Human Resources",3,4317,4,19,3]
[30,"Research & Development",3,"Female",75,1,"Human Resources",3,2632,3,5,5]
[32,"Research & Development",2,"Male",35,2,"Human Resources",4,4668,3,9,8]
[30,"Research & Development",3,"Female",84,1,"Human Resources",1,3204,3,8,3]
[30,"Research & Development",1,"Male",35,1,"Human Resources",4,2720,3,6,5]
[41,"Research & Development",3,"Male",91,4,"Human Resources",1,17181,3,21,7]
[41,"Research & Development",4,"Male",94,1,"Human Resources",1,2238,4,7,5]
[19,"Research & Development",1,"Female",79,1,"Human Resources",2,1483,3,1,1]
[40,"Research & Development",3,"Female",54,2,"Human Resources",2,5605,3,20,20]
[35,"Research & Development",5,"Male",94,3,"Human Resources",2,7295,3,10,10]
[53,"Research & Development",2,"Male",34,2,"Human Resources",3,2306,4,13,7]
[45,"Research & Development",3,"Male",60,2,"Human Resources",2,2348,3,20,17]
[32,"Research & Development",3,"Female",43,3,"Human Resources",4,8998,3,9,9]
[29,"Research & Development",1,"Male",41,2,"Human Resources",3,4319,3,10,10]
[51,"Research & Development",4,"Male",34,2,"Human Resources",3,6132,3,10,1]
[58,"Research & Development",3,"Female",75,1,"Human Resources",2,3346,4,9,1]
[40,"Research & Development",4,"Male",67,3,"Human Resources",4,10855,3,15,12]
[34,"Research & Development",4,"Female",75,1,"Human Resources",3,2231,3,6,4]
[22,"Research & Development",1,"Male",80,1,"Human Resources",4,2323,4,2,2]
[27,"Research & Development",3,"Male",57,1,"Human Resources",2,2024,3,6,2]
[28,"Research & Development",3,"Male",42,1,"Human Resources",4,2713,3,5,5]
[57,"Research & Development",2,"Male",83,3,"Human Resources",4,9439,3,12,5]
[27,"Research & Development",3,"Male",79,1,"Human Resources",3,2566,3,1,1]
[50,"Research & Development",3,"Female",53,5,"Human Resources",2,19926,3,21,5]
[41,"Research & Development",3,"Male",56,1,"Human Resources",3,2451,3,13,9]
[30,"Research & Development",3,"Female",41,3,"Human Resources",4,9419,3,12,10]
[38,"Research & Development",4,"Female",59,2,"Human Resources",4,8686,4,12,8]
[32,"Research & Development",5,"Male",43,1,"Human Resources",3,3038,4,8,5]
[27,"Research & Development",3,"Male",51,1,"Human Resources",2,3058,3,6,5]
[19,"Research & Development",1,"Female",100,1,"Human Resources",1,2325,4,1,0]
[36,"Research & Development",2,"Male",30,1,"Human Resources",2,2088,3,13,8]
[30,"Research & Development",3,"Male",66,2,"Human Resources",1,3072,3,12,12]
[45,"Research & Development",2,"Female",30,2,"Human Resources",1,5006,3,9,5]
[56,"Research & Development",3,"Female",67,1,"Human Resources",1,4257,3,19,2]
[33,"Research & Development",3,"Male",90,1,"Human Resources",4,2500,3,4,3]
[19,"Research & Development",3,"Male",47,1,"Human Resources",4,1102,4,1,1]
[46,"Research & Development",2,"Female",92,3,"Human Resources",1,10453,4,24,24]
[38,"Research & Development",2,"Female",75,1,"Human Resources",4,2288,3,2,2]
[31,"Research & Development",1,"Female",95,1,"Human Resources",4,3929,4,7,4]
[34,"Research & Development",2,"Female",95,1,"Human Resources",2,2311,3,9,3]
[41,"Research & Development",2,"Female",70,1,"Human Resources",2,3140,4,4,4]
[50,"Research & Development",3,"Male",86,1,"Laboratory Technician",3,3690,3,5,3]
[53,"Research & Development",2,"Female",57,2,"Laboratory Technician",1,4450,3,5,4]
[33,"Research & Development",3,"Female",72,1,"Laboratory Technician",2,2756,3,8,8]
[40,"Research & Development",1,"Female",46,5,"Laboratory Technician",3,19033,3,21,20]
[55,"Research & Development",4,"Male",61,5,"Laboratory Technician",2,18722,3,36,24]
[34,"Research & Development",1,"Male",45,2,"Laboratory Technician",3,9547,3,10,10]
[51,"Research & Development",3,"Female",98,4,"Laboratory Technician",2,13734,3,21,7]
[52,"Research & Development",4,"Male",65,5,"Laboratory Technician",3,19999,3,34,33]
[27,"Research & Development",3,"Female",99,1,"Laboratory Technician",2,2279,3,7,7]
[35,"Research & Development",2,"Male",50,2,"Laboratory Technician",3,5916,3,8,1]
[43,"Research & Development",3,"Male",37,1,"Laboratory Technician",4,2089,3,7,5]
[45,"Research & Development",2,"Male",65,4,"Laboratory Technician",4,16792,4,22,20]
[37,"Research & Development",3,"Male",65,1,"Laboratory Technician",1,3564,3,8,8]
[35,"Research & Development",3,"Female",37,2,"Laboratory Technician",2,4425,3,10,6]
[42,"Research & Development",2,"Female",36,2,"Laboratory Technician",3,5265,3,11,5]
[38,"Research & Development",4,"Male",88,2,"Laboratory Technician",3,6553,3,14,1]
[38,"Research & Development",3,"Male",54,2,"Laboratory Technician",4,6261,3,9,7]
[27,"Research & Development",1,"Male",60,2,"Laboratory Technician",1,4298,3,6,2]
[49,"Research & Development",4,"Male",92,2,"Laboratory Technician",4,6804,3,7,7]
[34,"Research & Development",4,"Male",43,1,"Laboratory Technician",3,3815,3,5,5]
[40,"Research & Development",2,"Male",99,2,"Laboratory Technician",4,2741,3,15,7]
[38,"Research & Development",1,"Male",70,2,"Laboratory Technician",1,6673,3,17,1]
[29,"Research & Development",3,"Female",35,3,"Laboratory Technician",4,7639,4,10,10]
[22,"Research & Development",3,"Male",60,1,"Laboratory Technician",2,2328,3,4,4]
[36,"Research & Development",1,"Female",73,1,"Laboratory Technician",4,2153,3,8,8]
[40,"Research & Development",5,"Male",63,2,"Laboratory Technician",4,4876,3,5,3]
[46,"Research & Development",4,"Male",97,3,"Laboratory Technician",1,9396,3,17,4]
[32,"Research & Development",4,"Male",32,3,"Laboratory Technician",4,10400,3,14,14]
[30,"Research & Development",1,"Male",88,3,"Laboratory Technician",3,8474,4,12,11]
[27,"Research & Development",3,"Female",90,2,"Laboratory Technician",3,9981,3,7,7]
[51,"Research & Development",4,"Male",81,3,"Laboratory Technician",2,12490,3,16,10]
[30,"Research & Development",3,"Female",88,1,"Laboratory Technician",1,2657,3,8,5]
[41,"Research & Development",3,"Female",75,3,"Laboratory Technician",4,13591,3,16,1]
[30,"Research & Development",4,"Female",52,2,"Laboratory Technician",1,6696,3,9,6]
[29,"Research & Development",3,"Male",85,1,"Laboratory Technician",3,2058,3,7,6]
[45,"Research & Development",3,"Female",57,3,"Laboratory Technician",4,8865,3,23,19]
[54,"Research & Development",3,"Female",52,2,"Laboratory Technician",1,5940,3,16,6]
[36,"Research & Development",2,"Male",62,2,"Laboratory Technician",2,5914,3,16,13]
[33,"Research & Development",4,"Female",47,1,"Laboratory Technician",2,2622,4,7,3]
[37,"Research & Development",3,"Male",47,3,"Laboratory Technician",4,12185,3,10,10]
[38,"Research & Development",3,"Male",76,3,"Laboratory Technician",3,10609,3,17,16]
[31,"Research & Development",4,"Male",90,2,"Laboratory Technician",3,4345,3,6,5]
[59,"Research & Development",3,"Male",70,1,"Laboratory Technician",4,2177,3,7,1]
[37,"Research & Development",4,"Male",41,1,"Laboratory Technician",4,2793,3,13,9]
[29,"Research & Development",1,"Female",42,3,"Laboratory Technician",4,7918,3,11,11]
[35,"Research & Development",3,"Female",92,3,"Laboratory Technician",3,8789,3,10,10]
[29,"Research & Development",1,"Male",86,1,"Laboratory Technician",4,2389,3,4,4]
[52,"Research & Development",3,"Female",89,1,"Laboratory Technician",4,3212,3,6,2]
[42,"Research & Development",2,"Male",58,5,"Laboratory Technician",4,19232,3,22,22]
[59,"Research & Development",2,"Male",52,1,"Laboratory Technician",3,2267,3,7,2]
[50,"Research & Development",4,"Female",68,5,"Laboratory Technician",4,19517,3,32,7]
[33,"Research & Development",3,"Male",58,1,"Laboratory Technician",4,2436,3,8,5]
[43,"Research & Development",3,"Female",80,4,"Laboratory Technician",4,16064,4,22,17]
[33,"Research & Development",2,"Female",39,1,"Laboratory Technician",1,2707,4,13,9]
[52,"Research & Development",4,"Male",79,5,"Laboratory Technician",3,19068,3,33,33]
[32,"Research & Development",2,"Female",56,1,"Laboratory Technician",2,3931,3,6,4]
[32,"Research & Development",3,"Male",62,1,"Laboratory Technician",3,3730,3,4,3]
[39,"Research & Development",4,"Female",96,1,"Laboratory Technician",3,2232,3,7,3]
[32,"Research & Development",4,"Male",100,2,"Laboratory Technician",4,4465,3,4,3]
[41,"Research & Development",2,"Male",36,2,"Laboratory Technician",1,3072,3,17,1]
[40,"Research & Development",2,"Male",62,2,"Laboratory Technician",4,3319,3,9,9]
[45,"Research & Development",3,"Male",70,5,"Laboratory Technician",4,19202,3,25,24]
[31,"Research & Development",4,"Male",73,3,"Laboratory Technician",3,13675,3,9,2]
[33,"Research & Development",4,"Female",63,1,"Laboratory Technician",4,2911,3,2,2]
[34,"Research & Development",4,"Male",84,2,"Laboratory Technician",1,5957,3,13,11]
[37,"Research & Development",2,"Female",83,1,"Laboratory Technician",1,3920,3,17,3]
[45,"Research & Development",4,"Male",77,2,"Laboratory Technician",3,6434,3,9,3]
[37,"Research & Development",3,"Male",61,3,"Laboratory Technician",3,10048,3,17,1]
[39,"Research & Development",4,"Female",64,3,"Laboratory Technician",3,10938,4,20,19]
[29,"Research & Development",3,"Male",60,1,"Laboratory Technician",4,2340,3,6,6]
[42,"Research & Development",2,"Female",82,2,"Laboratory Technician",1,6545,3,10,3]
[29,"Research & Development",2,"Male",45,2,"Laboratory Technician",4,6931,3,10,3]
[25,"Research & Development",3,"Female",62,2,"Laboratory Technician",3,4898,3,5,4]
[42,"Research & Development",3,"Female",56,1,"Laboratory Technician",1,2593,3,10,9]
[40,"Research & Development",2,"Male",49,5,"Laboratory Technician",3,19436,3,22,21]
[51,"Research & Development",3,"Male",96,1,"Laboratory Technician",4,2723,3,1,1]
[31,"Research & Development",2,"Male",71,1,"Laboratory Technician",2,3479,3,6,5]
[32,"Research & Development",3,"Male",100,1,"Laboratory Technician",2,2794,4,5,5]
[38,"Research & Development",2,"Male",39,2,"Laboratory Technician",4,5249,3,13,8]
[32,"Research & Development",1,"Male",84,2,"Laboratory Technician",1,2176,3,9,6]
[46,"Research & Development",3,"Female",75,4,"Laboratory Technician",2,16872,3,28,7]
[28,"Research & Development",4,"Male",79,1,"Laboratory Technician",3,3485,3,5,0]
[29,"Research & Development",3,"Male",78,2,"Laboratory Technician",2,6644,3,10,0]
[31,"Research & Development",3,"Male",64,2,"Laboratory Technician",4,5582,4,10,9]
[25,"Research & Development",2,"Male",85,2,"Laboratory Technician",1,4000,3,6,6]
[45,"Research & Development",2,"Male",79,4,"Laboratory Technician",4,13496,3,21,20]
[36,"Research & Development",3,"Male",47,1,"Laboratory Technician",4,3210,3,16,15]
[55,"Research & Development",3,"Male",81,5,"Laboratory Technician",1,19045,3,37,36]
[47,"Research & Development",4,"Male",88,3,"Laboratory Technician",2,11849,3,10,10]
[28,"Research & Development",3,"Male",94,1,"Laboratory Technician",4,2070,4,5,5]
[37,"Research & Development",4,"Male",98,2,"Laboratory Technician",4,6502,3,7,5]
[21,"Research & Development",2,"Male",100,1,"Laboratory Technician",3,3230,3,3,3]
[37,"Research & Development",4,"Female",80,3,"Laboratory Technician",4,13603,3,15,5]
[35,"Research & Development",3,"Female",71,3,"Laboratory Technician",2,11996,3,10,7]
[38,"Research & Development",2,"Female",44,2,"Laboratory Technician",1,5605,4,8,8]
[26,"Research & Development",3,"Female",84,2,"Laboratory Technician",2,6397,4,6,6]
[50,"Research & Development",1,"Male",96,5,"Laboratory Technician",2,19144,3,28,10]
[53,"Research & Development",4,"Male",45,4,"Laboratory Technician",3,17584,3,21,5]
[42,"Research & Development",1,"Male",99,2,"Laboratory Technician",3,4907,4,20,20]
[29,"Research & Development",2,"Male",44,2,"Laboratory Technician",4,4554,3,10,10]
[55,"Research & Development",2,"Male",37,2,"Laboratory Technician",4,5415,3,12,10]
[26,"Research & Development",2,"Male",60,2,"Laboratory Technician",1,4741,3,5,5]
[37,"Research & Development",3,"Female",42,1,"Laboratory Technician",4,2115,3,17,17]
[44,"Research & Development",3,"Male",43,1,"Laboratory Technician",3,3161,4,19,1]
[38,"Research & Development",4,"Male",82,2,"Laboratory Technician",4,5745,3,10,2]
[26,"Research & Development",4,"Male",45,1,"Laboratory Technician",2,2373,3,5,3]
[28,"Research & Development",2,"Female",66,1,"Laboratory Technician",4,3310,4,5,5]
[49,"Research & Development",4,"Female",35,5,"Laboratory Technician",1,18665,3,22,3]
[36,"Research & Development",3,"Male",30,2,"Laboratory Technician",2,4485,3,10,8]
[31,"Research & Development",3,"Female",84,1,"Laboratory Technician",2,2789,3,2,2]
[26,"Research & Development",4,"Male",48,2,"Laboratory Technician",4,5828,3,8,8]
[37,"Research & Development",3,"Male",53,1,"Laboratory Technician",4,2326,3,4,4]
[42,"Research & Development",3,"Female",77,4,"Laboratory Technician",2,13525,3,23,20]
[18,"Research & Development",3,"Male",54,1,"Laboratory Technician",3,1420,3,0,0]
[35,"Research & Development",3,"Male",96,3,"Laboratory Technician",2,8020,3,12,11]
[36,"Research & Development",4,"Male",81,1,"Laboratory Technician",4,3688,3,4,1]
[51,"Research & Development",3,"Male",84,2,"Laboratory Technician",2,5482,3,13,4]
[41,"Research & Development",4,"Male",88,4,"Laboratory Technician",2,16015,3,22,22]
[18,"Research & Development",3,"Female",69,1,"Laboratory Technician",3,1200,3,0,0]
[28,"Research & Development",2,"Male",68,2,"Laboratory Technician",1,5661,3,9,8]
[31,"Research & Development",3,"Male",100,2,"Laboratory Technician",4,6929,3,10,8]
[39,"Research & Development",3,"Male",48,3,"Laboratory Technician",4,9613,3,19,18]
[36,"Research & Development",4,"Female",47,2,"Laboratory Technician",2,5674,3,11,9]
[32,"Research & Development",3,"Male",91,2,"Laboratory Technician",3,5484,3,13,13]
[38,"Research & Development",2,"Female",81,3,"Laboratory Technician",2,12061,3,19,10]
[58,"Research & Development",4,"Male",32,2,"Laboratory Technician",3,5660,3,12,5]
[31,"Research & Development",4,"Male",86,1,"Laboratory Technician",4,4821,3,6,5]
[31,"Research & Development",3,"Male",62,2,"Laboratory Technician",1,6410,3,9,2]
[45,"Research & Development",3,"Male",97,3,"Laboratory Technician",1,5210,3,24,24]
[31,"Research & Development",4,"Male",32,1,"Laboratory Technician",4,2695,3,3,2]
[33,"Research & Development",4,"Female",74,3,"Laboratory Technician",2,11878,3,12,10]
[39,"Research & Development",1,"Male",99,4,"Laboratory Technician",1,17068,3,21,21]
[43,"Research & Development",4,"Female",33,1,"Laboratory Technician",4,2455,3,9,8]
[49,"Research & Development",2,"Female",90,4,"Laboratory Technician",3,13964,3,25,7]
[52,"Research & Development",4,"Male",85,2,"Laboratory Technician",2,4941,3,11,8]
[27,"Research & Development",3,"Female",85,1,"Laboratory Technician",2,2478,3,4,4]
[32,"Research & Development",2,"Female",65,2,"Laboratory Technician",2,5228,3,13,13]
[27,"Research & Development",3,"Male",74,2,"Laboratory Technician",3,4478,3,5,5]
[31,"Research & Development",3,"Male",73,2,"Laboratory Technician",4,7547,3,13,7]
[32,"Research & Development",4,"Female",74,2,"Laboratory Technician",4,5055,3,10,7]
[28,"Research & Development",4,"Male",84,1,"Laboratory Technician",4,3464,3,5,3]
[30,"Research & Development",2,"Female",64,2,"Laboratory Technician",4,5775,3,11,10]
[31,"Research & Development",2,"Female",48,3,"Laboratory Technician",3,8943,4,10,10]
[39,"Research & Development",2,"Male",54,5,"Laboratory Technician",4,19272,3,21,21]
[39,"Research & Development",2,"Female",41,2,"Laboratory Technician",3,5238,3,12,1]
[33,"Research & Development",3,"Male",46,2,"Laboratory Technician",4,4682,3,9,7]
[47,"Research & Development",5,"Male",42,5,"Laboratory Technician",3,18300,3,21,3]
[43,"Research & Development",4,"Female",82,2,"Laboratory Technician",3,5257,3,9,9]
[27,"Research & Development",1,"Male",73,2,"Laboratory Technician",2,6349,3,6,5]
[54,"Research & Development",4,"Female",31,2,"Laboratory Technician",3,4869,3,20,4]
[43,"Research & Development",3,"Female",43,3,"Laboratory Technician",1,9985,3,10,1]
[45,"Research & Development",4,"Male",75,2,"Laboratory Technician",4,3697,3,12,10]
[40,"Research & Development",2,"Male",57,2,"Laboratory Technician",4,7457,4,6,4]
[29,"Research & Development",4,"Male",77,1,"Laboratory Technician",1,2119,3,7,7]
[29,"Research & Development",5,"Male",30,1,"Laboratory Technician",4,3983,3,4,3]
[30,"Research & Development",3,"Female",30,2,"Laboratory Technician",3,6118,3,10,10]
[27,"Research & Development",4,"Female",56,2,"Laboratory Technician",2,6214,3,8,8]
[37,"Research & Development",2,"Male",61,2,"Laboratory Technician",4,6347,3,8,6]
[38,"Research & Development",2,"Male",92,3,"Laboratory Technician",4,11510,3,12,11]
[31,"Research & Development",4,"Female",39,3,"Laboratory Technician",4,7143,3,11,11]
[29,"Research & Development",1,"Female",39,2,"Laboratory Technician",2,8268,3,7,7]
[35,"Research & Development",4,"Male",62,3,"Laboratory Technician",2,8095,3,17,16]
[23,"Research & Development",1,"Male",83,1,"Laboratory Technician",4,2904,3,4,4]
[41,"Research & Development",3,"Male",95,2,"Laboratory Technician",2,6032,3,8,5]
[47,"Research & Development",1,"Male",99,2,"Laboratory Technician",3,2976,3,5,0]
[42,"Research & Development",5,"Female",44,4,"Laboratory Technician",4,15992,3,16,1]
[29,"Research & Development",3,"Male",61,2,"Laboratory Technician",3,4649,3,4,4]
[42,"Research & Development",1,"Male",52,1,"Laboratory Technician",3,2696,3,4,3]
[32,"Research & Development",3,"Female",75,1,"Laboratory Technician",2,2370,3,8,8]
[48,"Research & Development",1,"Female",91,3,"Laboratory Technician",3,12504,4,15,0]
[37,"Research & Development",3,"Male",51,2,"Laboratory Technician",1,5974,3,13,7]
[30,"Research & Development",2,"Female",85,2,"Laboratory Technician",3,4736,3,4,2]
[26,"Research & Development",3,"Male",57,2,"Laboratory Technician",3,5296,3,8,8]
[42,"Research & Development",4,"Male",98,2,"Laboratory Technician",4,6781,4,14,1]
[21,"Research & Development",1,"Female",99,1,"Laboratory Technician",2,2174,3,3,3]
[36,"Research & Development",5,"Female",45,2,"Laboratory Technician",4,6653,3,7,1]
[36,"Research & Development",4,"Male",48,3,"Laboratory Technician",4,9699,3,16,13]
[57,"Research & Development",4,"Male",88,2,"Laboratory Technician",3,6755,3,15,3]
[40,"Research & Development",4,"Female",46,1,"Laboratory Technician",3,2213,3,10,7]
[21,"Research & Development",2,"Male",39,1,"Laboratory Technician",4,2610,4,3,3]
[33,"Research & Development",3,"Female",34,1,"Laboratory Technician",3,2851,3,1,1]
[37,"Research & Development",3,"Female",98,1,"Laboratory Technician",1,3452,4,17,5]
[46,"Research & Development",4,"Female",30,2,"Laboratory Technician",3,5258,3,7,1]
[41,"Research & Development",3,"Male",56,2,"Laboratory Technician",2,9355,3,8,8]
[50,"Research & Development",3,"Male",100,3,"Laboratory Technician",4,10496,3,20,4]
[40,"Research & Development",2,"Male",68,2,"Laboratory Technician",3,6380,3,8,6]
[31,"Research & Development",4,"Male",42,1,"Laboratory Technician",2,2657,3,3,2]
[21,"Research & Development",3,"Female",90,1,"Laboratory Technician",2,2716,3,1,1]
[29,"Research & Development",3,"Male",54,1,"Laboratory Technician",4,2201,3,6,3]
[35,"Research & Development",4,"Male",97,2,"Laboratory Technician",2,6540,3,10,1]
[27,"Research & Development",2,"Male",82,1,"Laboratory Technician",2,3816,3,5,5]
[28,"Research & Development",4,"Male",92,2,"Laboratory Technician",4,5253,3,7,7]
[49,"Research & Development",3,"Male",31,3,"Laboratory Technician",3,10965,4,26,5]
[51,"Research & Development",2,"Female",87,2,"Laboratory Technician",4,4936,3,18,7]
[36,"Research & Development",3,"Female",96,1,"Laboratory Technician",3,2543,3,6,2]
[34,"Research & Development",3,"Male",67,2,"Laboratory Technician",4,5304,3,9,5]
[55,"Research & Development",3,"Female",97,4,"Laboratory Technician",4,16659,3,30,5]
[24,"Research & Development",4,"Female",77,2,"Laboratory Technician",3,4260,3,5,5]
[30,"Research & Development",1,"Male",72,1,"Laboratory Technician",2,2476,3,1,1]
[26,"Research & Development",1,"Male",73,1,"Laboratory Technician",1,3102,4,7,6]
[22,"Research & Development",3,"Female",43,1,"Laboratory Technician",2,2244,3,2,2]
[36,"Research & Development",2,"Male",61,3,"Laboratory Technician",3,7596,3,10,10]
[30,"Research & Development",3,"Male",40,1,"Laboratory Technician",4,2285,4,3,1]
[37,"Research & Development",3,"Female",95,1,"Laboratory Technician",1,3034,3,18,18]
[40,"Research & Development",2,"Female",46,2,"Laboratory Technician",2,5715,3,8,5]
[42,"Research & Development",4,"Female",95,1,"Laboratory Technician",1,2576,3,8,5]
[37,"Research & Development",4,"Male",49,2,"Laboratory Technician",2,4197,3,18,1]
[43,"Research & Development",3,"Male",59,4,"Laboratory Technician",2,14336,3,25,25]
[40,"Research & Development",3,"Female",78,2,"Laboratory Technician",3,3448,4,20,1]
[54,"Research & Development",2,"Male",86,5,"Laboratory Technician",1,19406,3,24,4]
[34,"Research & Development",4,"Female",72,2,"Laboratory Technician",3,6538,3,6,3]
[31,"Research & Development",2,"Female",31,2,"Laboratory Technician",1,4306,3,13,13]
[43,"Research & Development",3,"Male",61,1,"Laboratory Technician",4,2258,4,8,3]
[43,"Research & Development",4,"Female",74,2,"Laboratory Technician",3,4522,3,8,5]
[25,"Research & Development",2,"Female",99,2,"Laboratory Technician",4,4487,3,5,5]
[37,"Research & Development",5,"Female",72,2,"Laboratory Technician",3,4449,3,15,13]
[31,"Research & Development",2,"Male",98,1,"Laboratory Technician",1,2218,3,4,4]
[39,"Research & Development",1,"Male",52,5,"Laboratory Technician",3,19197,3,21,21]
[56,"Research & Development",3,"Female",86,4,"Laboratory Technician",1,13212,3,36,7]
[30,"Research & Development",3,"Female",83,2,"Laboratory Technician",3,6577,3,6,5]
[41,"Research & Development",3,"Male",49,3,"Laboratory Technician",1,8392,3,10,10]
[28,"Research & Development",2,"Male",79,2,"Laboratory Technician",1,4558,3,10,10]
[25,"Research & Development",3,"Male",91,1,"Laboratory Technician",1,4031,3,6,2]
[52,"Research & Development",3,"Male",39,3,"Laboratory Technician",3,7969,3,28,5]
[45,"Research & Development",2,"Male",69,1,"Laboratory Technician",4,2654,4,8,2]
[52,"Research & Development",2,"Female",30,4,"Laboratory Technician",4,16555,3,31,5]
[42,"Research & Development",2,"Female",92,2,"Laboratory Technician",3,4556,3,19,5]
[30,"Research & Development",3,"Female",43,2,"Laboratory Technician",4,6091,4,11,5]
[60,"Research & Development",3,"Female",41,5,"Laboratory Technician",1,19566,3,33,29]
[46,"Research & Development",3,"Female",87,2,"Laboratory Technician",3,4810,3,19,10]
[42,"Research & Development",4,"Female",88,2,"Laboratory Technician",4,4523,3,7,6]
[24,"Research & Development",1,"Female",62,1,"Laboratory Technician",2,3202,3,6,5]
[34,"Research & Development",2,"Female",33,1,"Laboratory Technician",3,2351,3,3,2]
[38,"Research & Development",2,"Male",42,1,"Laboratory Technician",4,1702,4,1,1]
[40,"Research & Development",4,"Female",79,5,"Laboratory Technician",3,18041,3,21,20]
[26,"Research & Development",3,"Female",90,1,"Laboratory Technician",4,2886,4,3,3]
[30,"Research & Development",3,"Male",53,1,"Laboratory Technician",4,2097,3,9,5]
[29,"Research & Development",4,"Male",93,3,"Laboratory Technician",3,11935,3,10,10]
[29,"Research & Development",5,"Female",71,1,"Laboratory Technician",2,2546,3,6,2]
[19,"Research & Development",2,"Male",52,1,"Laboratory Technician",4,2564,3,1,1]
[30,"Research & Development",4,"Female",69,3,"Laboratory Technician",1,8412,3,10,9]
[57,"Research & Development",3,"Male",56,4,"Laboratory Technician",4,14118,3,32,1]
[50,"Research & Development",4,"Male",88,4,"Laboratory Technician",3,17046,3,28,27]
[30,"Research & Development",3,"Female",49,1,"Laboratory Technician",4,2564,3,12,11]
[60,"Research & Development",3,"Female",80,3,"Laboratory Technician",1,10266,3,22,18]
[47,"Research & Development",2,"Female",65,2,"Laboratory Technician",4,5070,3,20,5]
[46,"Research & Development",3,"Male",51,4,"Laboratory Technician",3,17861,3,26,3]
[35,"Research & Development",3,"Male",46,1,"Laboratory Technician",3,4230,3,6,5]
[54,"Research & Development",4,"Female",42,2,"Laboratory Technician",3,3780,3,19,1]
[34,"Research & Development",4,"Male",62,1,"Laboratory Technician",3,2768,3,14,7]
[46,"Research & Development",3,"Female",94,3,"Laboratory Technician",4,9071,3,15,3]
[31,"Research & Development",1,"Male",33,3,"Laboratory Technician",2,10648,4,13,13]
[33,"Research & Development",1,"Male",56,3,"Laboratory Technician",3,13610,3,15,7]
[33,"Research & Development",1,"Male",38,1,"Laboratory Technician",4,3408,3,8,4]
[30,"Research & Development",1,"Male",57,1,"Laboratory Technician",2,2983,3,4,3]
[35,"Research & Development",3,"Male",72,3,"Laboratory Technician",3,7632,3,10,8]
[31,"Research & Development",3,"Male",66,3,"Laboratory Technician",3,9824,3,12,1]
[34,"Research & Development",3,"Female",43,3,"Laboratory Technician",1,9950,3,11,3]
[42,"Research & Development",2,"Male",97,1,"Laboratory Technician",3,2093,3,8,2]
[36,"Research & Development",4,"Male",32,3,"Manager",4,9980,3,10,10]
[22,"Research & Development",1,"Male",99,1,"Manager",3,3894,3,4,2]
[48,"Research & Development",5,"Female",37,2,"Manager",4,4051,3,14,9]
[55,"Research & Development",5,"Female",83,4,"Manager",2,16835,4,37,10]
[41,"Research & Development",2,"Male",56,2,"Manager",4,6230,3,16,14]
[35,"Research & Development",3,"Male",85,2,"Manager",3,4717,3,15,11]
[40,"Research & Development",3,"Female",75,4,"Manager",3,13237,3,22,20]
[39,"Research & Development",1,"Female",48,1,"Manager",3,3755,3,8,8]
[31,"Research & Development",1,"Male",77,2,"Manager",4,6582,3,10,6]
[42,"Research & Development",3,"Male",56,3,"Manager",1,7406,4,10,10]
[45,"Research & Development",3,"Male",61,2,"Manager",2,4805,3,9,8]
[26,"Research & Development",4,"Female",58,1,"Manager",3,2741,3,8,7]
[29,"Research & Development",3,"Male",34,2,"Manager",4,4262,3,8,3]
[33,"Research & Development",5,"Female",95,4,"Manager",3,16184,3,10,6]
[31,"Research & Development",3,"Male",44,3,"Manager",4,11557,4,10,5]
[18,"Research & Development",3,"Male",69,1,"Manager",2,1878,3,0,0]
[40,"Research & Development",3,"Male",58,3,"Manager",1,10932,3,20,1]
[41,"Research & Development",4,"Female",62,2,"Manager",3,6811,3,10,8]
[26,"Research & Development",2,"Male",45,2,"Manager",3,4306,3,8,0]
[35,"Research & Development",3,"Female",80,2,"Manager",3,4859,3,5,5]
[34,"Research & Development",4,"Male",74,2,"Manager",4,5337,3,10,10]
[26,"Research & Development",3,"Male",66,1,"Manager",4,2340,3,1,1]
[37,"Research & Development",3,"Female",59,3,"Manager",4,7491,3,12,6]
[46,"Research & Development",1,"Female",86,3,"Manager",3,10527,3,28,2]
[41,"Research & Development",5,"Female",91,4,"Manager",1,16595,3,22,18]
[37,"Research & Development",4,"Male",69,3,"Manager",2,8834,3,9,9]
[52,"Research & Development",2,"Male",78,2,"Manager",1,5577,3,18,10]
[32,"Research & Development",4,"Male",60,2,"Manager",3,4707,3,6,4]
[24,"Research & Development",3,"Male",38,1,"Manager",4,2400,3,3,2]
[38,"Research & Development",3,"Female",76,2,"Manager",3,9824,3,18,1]
[37,"Research & Development",4,"Female",65,2,"Manager",2,6447,3,8,6]
[49,"Research & Development",4,"Male",58,5,"Manager",3,19502,3,31,31]
[24,"Research & Development",3,"Male",89,1,"Manager",4,2725,3,6,6]
[26,"Research & Development",2,"Male",66,2,"Manager",2,6272,4,6,5]
[24,"Research & Development",2,"Male",94,1,"Manager",2,2127,4,1,1]
[50,"Research & Development",3,"Male",99,5,"Manager",2,18200,3,32,32]
[25,"Research & Development",1,"Male",40,1,"Manager",3,2096,3,7,7]
[24,"Research & Development",3,"Female",55,1,"Manager",3,2886,3,6,6]
[30,"Research & Development",4,"Male",74,1,"Manager",1,2033,3,1,1]
[34,"Research & Development",2,"Male",83,1,"Manager",4,3622,3,6,6]
[31,"Research & Development",4,"Male",46,2,"Manager",1,4233,3,9,3]
[35,"Research & Development",2,"Male",54,2,"Manager",4,3681,3,9,3]
[31,"Research & Development",4,"Male",66,2,"Manager",4,5460,4,13,7]
[27,"Research & Development",4,"Female",66,1,"Manager",3,2187,3,6,5]
[37,"Research & Development",3,"Male",75,2,"Manager",3,9602,3,17,3]
[20,"Research & Development",3,"Female",83,1,"Manager",2,2836,3,1,1]
[42,"Research & Development",4,"Female",81,2,"Manager",4,4089,3,10,10]
[43,"Research & Development",4,"Male",50,4,"Manager",4,16627,3,21,1]
[38,"Research & Development",1,"Female",43,1,"Manager",1,2619,3,8,0]
[43,"Research & Development",5,"Male",72,2,"Manager",3,5679,3,10,8]
[48,"Research & Development",4,"Female",40,4,"Manager",1,15402,3,21,3]
[44,"Research & Development",4,"Female",50,2,"Manager",3,5985,3,10,2]
[34,"Research & Development",3,"Female",31,1,"Manager",3,2579,3,8,8]
[27,"Research & Development",1,"Male",85,1,"Manager",1,3041,3,5,4]
[21,"Research & Development",1,"Male",49,1,"Manager",3,3447,3,3,3]
[44,"Research & Development",4,"Male",35,5,"Manager",4,19513,3,26,2]
[22,"Research & Development",1,"Male",69,1,"Manager",3,2773,4,3,2]
[33,"Research & Development",4,"Male",39,2,"Manager",3,7104,3,6,5]
[32,"Research & Development",4,"Female",92,2,"Manager",4,6322,3,6,6]
[30,"Research & Development",3,"Female",71,1,"Manager",3,2083,4,1,1]
[53,"Research & Development",1,"Female",34,2,"Manager",1,8381,4,18,14]
[34,"Research & Development",5,"Male",42,1,"Manager",4,2691,3,10,10]
[45,"Research & Development",4,"Female",100,2,"Manager",1,4286,3,5,1]
[26,"Research & Development",3,"Female",71,1,"Manager",4,2659,3,3,3]
[37,"Research & Development",3,"Male",36,3,"Manager",3,9434,3,10,10]
[29,"Research & Development",2,"Female",62,2,"Manager",3,5561,3,6,6]
[35,"Research & Development",4,"Male",82,2,"Manager",4,6646,3,17,17]
[33,"Research & Development",3,"Male",30,2,"Manager",4,7725,4,15,13]
[54,"Research & Development",4,"Male",88,3,"Manager",2,10725,3,16,9]
[36,"Research & Development",2,"Male",48,2,"Manager",2,8847,3,13,3]
[27,"Research & Development",4,"Male",54,1,"Manager",4,2045,3,5,4]
[20,"Research & Development",1,"Male",32,1,"Manager",3,1009,3,1,1]
[33,"Research & Development",3,"Male",70,1,"Manager",1,3348,3,10,10]
[35,"Research & Development",3,"Male",41,1,"Manager",3,1281,3,1,1]
[23,"Research & Development",3,"Male",58,1,"Manager",1,2819,3,5,3]
[25,"Research & Development",3,"Male",57,2,"Manager",2,4851,4,4,3]
[38,"Research & Development",4,"Female",46,2,"Manager",4,4028,4,8,7]
[29,"Research & Development",4,"Male",76,1,"Manager",4,2720,3,10,10]
[48,"Research & Development",1,"Male",56,2,"Manager",2,8120,3,12,2]
[27,"Research & Development",1,"Female",71,2,"Manager",4,4647,4,6,6]
[37,"Research & Development",2,"Male",80,1,"Manager",4,4680,3,4,1]
[50,"Research & Development",1,"Male",74,1,"Manager",3,3221,3,20,20]
[34,"Research & Development",3,"Female",46,3,"Manager",2,8621,3,9,8]
[24,"Research & Development",2,"Female",65,2,"Manager",3,4577,3,4,2]
[39,"Research & Development",4,"Female",80,2,"Manager",3,4553,3,20,20]
[32,"Research & Development",3,"Male",55,2,"Manager",4,5396,3,10,10]
[50,"Research & Development",2,"Male",50,2,"Manager",3,6796,3,18,4]
[38,"Research & Development",4,"Female",33,2,"Manager",4,7625,3,10,9]
[27,"Research & Development",2,"Female",68,3,"Manager",1,7412,3,9,9]
[32,"Research & Development",2,"Female",39,3,"Manager",4,11159,3,10,7]
[47,"Research & Development",4,"Male",42,2,"Manager",1,4960,3,20,7]
[40,"Research & Development",4,"Male",48,3,"Manager",1,10475,4,20,18]
[53,"Research & Development",3,"Male",59,4,"Manager",3,14814,3,32,5]
[41,"Research & Development",4,"Male",73,5,"Manager",4,19141,3,23,21]
[60,"Research & Development",4,"Male",84,2,"Manager",1,5405,3,10,2]
[27,"Research & Development",2,"Male",32,3,"Manager",1,8793,4,9,9]
[41,"Research & Development",3,"Male",59,5,"Manager",3,19189,3,22,22]
[50,"Research & Development",4,"Male",54,1,"Manager",2,3875,3,4,2]
[28,"Research & Development",2,"Female",67,1,"Manager",2,2216,3,10,7]
[36,"Research & Development",3,"Female",63,3,"Manager",1,11713,3,10,8]
[38,"Research & Development",3,"Female",81,3,"Manager",3,7861,3,10,1]
[44,"Research & Development",3,"Male",49,1,"Manager",3,3708,3,9,5]
[47,"Research & Development",3,"Female",49,4,"Manufacturing Director",3,13770,3,28,22]
[30,"Research & Development",5,"Male",99,2,"Manufacturing Director",4,5304,4,10,8]
[29,"Research & Development",3,"Male",99,1,"Manufacturing Director",3,2642,3,1,1]
[42,"Research & Development",3,"Male",57,1,"Manufacturing Director",3,2759,3,7,2]
[43,"Research & Development",3,"Male",47,2,"Manufacturing Director",4,6804,3,7,2]
[34,"Research & Development",2,"Female",96,2,"Manufacturing Director",3,6142,3,10,5]
[23,"Research & Development",1,"Male",37,1,"Manufacturing Director",1,2500,3,5,4]
[39,"Research & Development",3,"Female",44,2,"Manufacturing Director",2,6389,3,12,8]
[56,"Research & Development",3,"Male",81,4,"Manufacturing Director",4,11103,3,30,10]
[40,"Research & Development",1,"Female",86,1,"Manufacturing Director",4,2342,4,5,4]
[27,"Research & Development",3,"Female",55,2,"Manufacturing Director",1,6811,3,9,7]
[29,"Research & Development",3,"Male",83,1,"Manufacturing Director",2,2297,3,2,2]
[53,"Research & Development",3,"Male",86,2,"Manufacturing Director",4,2450,3,19,2]
[35,"Research & Development",4,"Female",61,2,"Manufacturing Director",1,5093,3,16,1]
[32,"Research & Development",4,"Male",80,2,"Manufacturing Director",4,5309,3,10,10]
[38,"Research & Development",5,"Male",92,1,"Manufacturing Director",3,3057,3,6,1]
[34,"Research & Development",5,"Female",32,2,"Manufacturing Director",1,5121,3,7,0]
[52,"Research & Development",4,"Male",31,4,"Manufacturing Director",1,16856,3,34,34]
[33,"Research & Development",4,"Male",63,1,"Manufacturing Director",4,2686,3,10,10]
[25,"Research & Development",1,"Female",32,2,"Manufacturing Director",4,6180,4,6,6]
[45,"Research & Development",2,"Male",46,2,"Manufacturing Director",3,6632,3,9,8]
[23,"Research & Development",1,"Male",79,1,"Manufacturing Director",3,3505,3,2,2]
[47,"Research & Development",2,"Female",77,2,"Manufacturing Director",3,6397,3,8,5]
[34,"Research & Development",3,"Male",60,2,"Manufacturing Director",4,6274,4,6,6]
[55,"Research & Development",3,"Male",78,5,"Manufacturing Director",1,19859,3,24,5]
[36,"Research & Development",4,"Male",76,3,"Manufacturing Director",1,7587,3,10,10]
[52,"Research & Development",4,"Male",41,1,"Manufacturing Director",4,4258,3,5,4]
[26,"Research & Development",2,"Female",71,1,"Manufacturing Director",4,4364,3,5,2]
[29,"Research & Development",3,"Female",66,2,"Manufacturing Director",3,4335,3,11,8]
[26,"Research & Development",3,"Male",38,2,"Manufacturing Director",1,5326,3,6,4]
[34,"Research & Development",4,"Female",72,1,"Manufacturing Director",4,3280,3,10,4]
[54,"Research & Development",4,"Female",95,2,"Manufacturing Director",1,5485,3,9,5]
[27,"Research & Development",1,"Male",84,2,"Manufacturing Director",4,4342,3,5,4]
[37,"Research & Development",1,"Female",82,1,"Manufacturing Director",1,2782,3,6,5]
[38,"Research & Development",4,"Female",75,2,"Manufacturing Director",1,5980,3,17,15]
[34,"Research & Development",4,"Female",86,1,"Manufacturing Director",1,4381,3,6,6]
[35,"Research & Development",4,"Female",72,1,"Manufacturing Director",4,2572,3,3,3]
[30,"Research & Development",3,"Male",38,1,"Manufacturing Director",3,3833,4,7,2]
[40,"Research & Development",2,"Female",38,2,"Manufacturing Director",2,4244,4,8,8]
[34,"Research & Development",2,"Female",93,2,"Manufacturing Director",1,6500,3,6,3]
[42,"Research & Development",3,"Male",66,5,"Manufacturing Director",4,18430,3,24,24]
[23,"Research & Development",3,"Male",63,1,"Manufacturing Director",1,1601,4,1,0]
[24,"Research & Development",3,"Male",60,1,"Manufacturing Director",2,2694,3,1,1]
[52,"Research & Development",4,"Female",82,2,"Manufacturing Director",3,3149,4,9,5]
[50,"Research & Development",3,"Male",64,4,"Manufacturing Director",3,17639,3,30,4]
[29,"Research & Development",2,"Female",36,1,"Manufacturing Director",1,2319,3,1,1]
[33,"Research & Development",3,"Male",49,3,"Manufacturing Director",3,11691,3,14,13]
[33,"Research & Development",3,"Female",69,2,"Manufacturing Director",1,5324,3,6,3]
[47,"Research & Development",2,"Female",33,4,"Manufacturing Director",4,16752,3,26,26]
[36,"Research & Development",3,"Female",35,2,"Manufacturing Director",2,5228,3,10,9]
[29,"Research & Development",2,"Male",81,1,"Manufacturing Director",3,2700,4,10,10]
[58,"Research & Development",4,"Male",31,5,"Manufacturing Director",2,19246,3,40,31]
[35,"Research & Development",4,"Female",40,1,"Manufacturing Director",3,2506,3,7,2]
[42,"Research & Development",2,"Female",43,2,"Manufacturing Director",4,6062,3,8,4]
[28,"Research & Development",4,"Male",46,1,"Manufacturing Director",3,4382,3,5,2]
[36,"Research & Development",3,"Male",36,1,"Manufacturing Director",2,2143,3,8,5]
[32,"Research & Development",3,"Female",98,2,"Manufacturing Director",3,6162,3,14,14]
[40,"Research & Development",4,"Male",51,2,"Manufacturing Director",3,5094,3,10,1]
[30,"Research & Development",3,"Female",52,2,"Manufacturing Director",4,6877,4,12,0]
[45,"Research & Development",3,"Female",95,1,"Manufacturing Director",3,2274,3,1,1]
[42,"Research & Development",3,"Male",98,2,"Manufacturing Director",2,4434,3,10,9]
[38,"Research & Development",3,"Male",45,2,"Manufacturing Director",1,6288,3,13,4]
[34,"Research & Development",4,"Female",100,1,"Manufacturing Director",4,2553,3,6,5]
[49,"Research & Development",3,"Female",43,3,"Manufacturing Director",4,7654,3,9,9]
[55,"Research & Development",1,"Male",37,2,"Manufacturing Director",4,5160,3,12,9]
[43,"Research & Development",2,"Male",94,4,"Manufacturing Director",1,17159,4,22,4]
[27,"Research & Development",1,"Male",42,3,"Manufacturing Director",4,12808,3,9,9]
[35,"Research & Development",3,"Male",59,3,"Manufacturing Director",3,10221,4,17,8]
[28,"Research & Development",4,"Female",81,2,"Manufacturing Director",2,4779,4,8,8]
[34,"Research & Development",2,"Male",88,1,"Manufacturing Director",4,3737,3,4,3]
[26,"Research & Development",2,"Female",88,1,"Manufacturing Director",3,2366,3,8,8]
[27,"Research & Development",3,"Male",50,1,"Manufacturing Director",4,1706,3,0,0]
[51,"Research & Development",4,"Female",66,4,"Manufacturing Director",3,16307,3,29,20]
[44,"Research & Development",3,"Male",50,2,"Manufacturing Director",2,5933,3,10,5]
[25,"Research & Development",1,"Male",65,1,"Manufacturing Director",1,3424,3,6,4]
[33,"Research & Development",3,"Male",48,2,"Manufacturing Director",1,4037,4,9,9]
[35,"Research & Development",1,"Female",53,1,"Manufacturing Director",1,2559,3,6,6]
[36,"Research & Development",2,"Male",56,2,"Manufacturing Director",4,6201,3,18,18]
[32,"Research & Development",4,"Male",73,2,"Manufacturing Director",4,4403,3,8,5]
[30,"Research & Development",4,"Male",75,1,"Manufacturing Director",4,3761,3,10,5]
[53,"Research & Development",2,"Female",78,3,"Manufacturing Director",4,10934,3,35,5]
[45,"Research & Development",3,"Male",74,3,"Manufacturing Director",1,10761,3,18,5]
[32,"Research & Development",2,"Female",91,2,"Manufacturing Director",3,5175,3,9,5]
[52,"Research & Development",4,"Female",81,4,"Manufacturing Director",4,13826,4,31,9]
[37,"Research & Development",4,"Male",66,2,"Manufacturing Director",3,6334,3,9,1]
[28,"Research & Development",2,"Male",63,1,"Manufacturing Director",4,4936,3,6,5]
[22,"Research & Development",2,"Male",33,2,"Manufacturing Director",4,4775,4,4,2]
[44,"Research & Development",4,"Male",62,1,"Manufacturing Director",4,2818,4,10,3]
[42,"Research & Development",1,"Male",35,1,"Manufacturing Director",4,2515,3,8,2]
[36,"Research & Development",3,"Male",77,1,"Manufacturing Director",1,2342,4,6,5]
[25,"Research & Development",1,"Male",98,2,"Manufacturing Director",1,4194,3,5,5]
[35,"Research & Development",3,"Female",66,3,"Manufacturing Director",3,10685,4,17,17]
[35,"Research & Development",4,"Female",96,1,"Manufacturing Director",2,2022,3,10,10]
[32,"Research & Development",3,"Male",61,1,"Manufacturing Director",4,2314,3,4,3]
[25,"Research & Development",1,"Male",87,2,"Manufacturing Director",1,4256,3,5,5]
[49,"Research & Development",3,"Female",36,1,"Manufacturing Director",1,3580,3,7,4]
[24,"Research & Development",1,"Male",46,1,"Manufacturing Director",4,3162,3,6,5]
[32,"Research & Development",2,"Male",48,2,"Manufacturing Director",2,6524,3,10,10]
[38,"Research & Development",3,"Male",98,1,"Manufacturing Director",2,2899,3,3,2]
[42,"Research & Development",3,"Female",95,2,"Manufacturing Director",4,5231,3,17,5]
[31,"Research & Development",4,"Male",48,1,"Manufacturing Director",4,2356,3,8,6]
[29,"Research & Development",3,"Female",48,1,"Manufacturing Director",3,2800,3,5,3]
[53,"Research & Development",3,"Male",73,4,"Manufacturing Director",4,11836,3,28,2]
[35,"Research & Development",3,"Male",78,3,"Manufacturing Director",2,10903,3,16,13]
[37,"Research & Development",2,"Female",54,1,"Manufacturing Director",4,2973,3,10,5]
[53,"Research & Development",4,"Female",72,4,"Manufacturing Director",4,14275,3,33,12]
[43,"Research & Development",3,"Female",33,2,"Manufacturing Director",4,5562,3,12,5]
[47,"Research & Development",2,"Female",35,2,"Manufacturing Director",4,4537,4,8,7]
[37,"Research & Development",2,"Male",32,3,"Manufacturing Director",2,7642,3,10,10]
[50,"Research & Development",4,"Male",98,4,"Manufacturing Director",1,17924,3,31,31]
[39,"Research & Development",3,"Female",42,2,"Manufacturing Director",4,5204,3,13,5]
[33,"Research & Development",2,"Male",57,1,"Manufacturing Director",2,2277,3,7,4]
[32,"Research & Development",4,"Male",87,1,"Manufacturing Director",4,2795,4,1,1]
[29,"Research & Development",1,"Female",62,1,"Manufacturing Director",4,2532,3,8,4]
[44,"Research & Development",2,"Male",61,1,"Manufacturing Director",1,2559,3,8,8]
[28,"Research & Development",4,"Male",98,2,"Manufacturing Director",4,4908,3,4,4]
[58,"Research & Development",1,"Male",57,1,"Manufacturing Director",4,2380,3,3,1]
[43,"Research & Development",3,"Female",55,2,"Manufacturing Director",2,4765,4,4,1]
[20,"Research & Development",3,"Female",49,1,"Manufacturing Director",3,2044,3,2,2]
[21,"Research & Development",1,"Female",65,1,"Manufacturing Director",4,2693,3,1,1]
[36,"Research & Development",1,"Male",68,2,"Manufacturing Director",4,6586,3,17,16]
[47,"Research & Development",4,"Female",65,1,"Manufacturing Director",4,3294,3,3,3]
[22,"Research & Development",1,"Female",34,2,"Manufacturing Director",3,4171,3,4,3]
[41,"Research & Development",4,"Female",57,1,"Manufacturing Director",4,2778,3,10,7]
[28,"Research & Development",3,"Female",77,1,"Manufacturing Director",3,2377,3,6,2]
[39,"Research & Development",3,"Male",70,1,"Manufacturing Director",1,2404,4,8,2]
[27,"Research & Development",3,"Female",76,1,"Manufacturing Director",3,2318,3,1,1]
[34,"Research & Development",3,"Male",83,1,"Manufacturing Director",2,2008,3,1,1]
[42,"Research & Development",2,"Female",68,2,"Manufacturing Director",3,6244,3,10,5]
[33,"Research & Development",4,"Male",100,1,"Manufacturing Director",1,2799,3,6,3]
[58,"Research & Development",3,"Female",37,3,"Manufacturing Director",2,10552,3,24,6]
[31,"Research & Development",4,"Male",41,1,"Manufacturing Director",3,2329,3,13,7]
[35,"Research & Development",1,"Female",51,2,"Manufacturing Director",4,4014,4,10,10]
[49,"Research & Development",2,"Female",51,3,"Manufacturing Director",2,7403,3,29,26]
[48,"Research & Development",4,"Male",51,1,"Manufacturing Director",3,2259,3,13,0]
[31,"Research & Development",2,"Female",45,2,"Manufacturing Director",3,6932,3,9,9]
[36,"Research & Development",4,"Male",65,1,"Manufacturing Director",4,4678,3,8,6]
[38,"Research & Development",3,"Female",80,3,"Manufacturing Director",1,13582,3,15,15]
[32,"Research & Development",3,"Female",70,1,"Manufacturing Director",2,2332,4,5,3]
[25,"Research & Development",2,"Male",36,1,"Manufacturing Director",2,2413,3,1,1]
[40,"Research & Development",4,"Male",67,3,"Manufacturing Director",2,9705,3,11,1]
[26,"Research & Development",3,"Male",52,2,"Manufacturing Director",1,4294,3,7,7]
[41,"Research & Development",3,"Male",59,1,"Manufacturing Director",1,4721,3,20,18]
[36,"Research & Development",4,"Male",79,1,"Manufacturing Director",3,2519,4,16,11]
[19,"Research & Development",3,"Male",37,1,"Manufacturing Director",2,2121,3,1,1]
[20,"Research & Development",3,"Male",84,1,"Research Director",1,2973,3,1,1]
[31,"Research & Development",3,"Female",41,2,"Research Director",4,5855,3,10,9]
[40,"Research & Development",4,"Male",35,1,"Research Director",2,3617,3,3,1]
[32,"Research & Development",4,"Female",93,2,"Research Director",1,6725,3,8,8]
[36,"Research & Development",1,"Male",51,3,"Research Director",4,10325,3,16,16]
[33,"Research & Development",3,"Female",42,2,"Research Director",4,6949,3,6,5]
[37,"Research & Development",4,"Male",46,3,"Research Director",3,10609,3,17,14]
[45,"Research & Development",2,"Male",57,2,"Research Director",2,4447,3,9,9]
[29,"Research & Development",3,"Female",84,1,"Research Director",4,2157,3,3,3]
[35,"Research & Development",3,"Female",86,2,"Research Director",3,4601,3,5,5]
[52,"Research & Development",2,"Male",70,4,"Research Director",4,17099,3,26,9]
[58,"Research & Development",3,"Male",51,1,"Research Director",3,2479,4,7,1]
[53,"Research & Development",2,"Male",45,4,"Research Director",3,14852,3,22,17]
[30,"Research & Development",2,"Male",62,3,"Research Director",3,7264,3,10,8]
[38,"Research & Development",3,"Female",85,2,"Research Director",4,5666,3,6,5]
[35,"Research & Development",4,"Male",92,3,"Research Director",4,7823,3,12,10]
[39,"Research & Development",5,"Male",41,3,"Research Director",3,7880,3,9,8]
[40,"Research & Development",3,"Female",100,4,"Research Director",2,13194,3,22,1]
[47,"Research & Development",4,"Male",64,2,"Research Director",3,5067,3,20,19]
[36,"Research & Development",4,"Male",84,2,"Research Director",4,5079,3,12,7]
[31,"Research & Development",2,"Male",46,1,"Research Director",1,2321,4,4,3]
[33,"Research & Development",3,"Male",38,4,"Research Director",3,17444,3,10,10]
[29,"Research & Development",3,"Female",92,1,"Research Director",1,2404,4,3,0]
[33,"Research & Development",1,"Female",53,1,"Research Director",4,3452,3,5,3]
[45,"Research & Development",4,"Female",91,1,"Research Director",4,2270,3,8,5]
[50,"Research & Development",2,"Male",66,4,"Research Director",4,17399,4,32,5]
[33,"Research & Development",4,"Female",84,2,"Research Director",2,5488,3,6,6]
[41,"Research & Development",3,"Male",64,5,"Research Director",3,19419,3,21,18]
[27,"Research & Development",4,"Female",37,1,"Research Director",2,2811,3,4,2]
[45,"Research & Development",2,"Male",42,2,"Research Director",1,3633,3,9,9]
[47,"Research & Development",2,"Female",83,2,"Research Director",4,4163,3,9,9]
[30,"Research & Development",3,"Female",48,1,"Research Director",3,2132,3,7,5]
[50,"Research & Development",3,"Male",95,4,"Research Director",3,13973,3,22,12]
[38,"Research & Development",1,"Male",66,1,"Research Director",3,2684,3,3,2]
[46,"Research & Development",2,"Male",75,3,"Research Director",3,10845,3,13,8]
[24,"Research & Development",1,"Female",41,2,"Research Director",3,4377,3,5,4]
[35,"Research & Development",4,"Male",39,1,"Research Director",2,3743,4,5,4]
[31,"Research & Development",1,"Female",96,2,"Research Director",1,4148,3,4,4]
[18,"Research & Development",2,"Male",73,1,"Research Director",4,1051,3,0,0]
[54,"Research & Development",3,"Female",56,3,"Research Director",3,10739,3,22,10]
[35,"Research & Development",4,"Female",57,3,"Research Director",3,10388,3,16,16]
[30,"Research & Development",2,"Female",73,3,"Research Director",1,11416,3,9,8]
[20,"Research & Development",3,"Female",98,1,"Research Director",1,2600,3,1,1]
[30,"Research & Development",3,"Female",60,1,"Research Director",2,2422,3,4,3]
[26,"Research & Development",2,"Male",32,2,"Research Director",4,5472,3,8,8]
[22,"Research & Development",1,"Male",94,1,"Research Director",1,2451,3,4,4]
[48,"Research & Development",3,"Male",97,2,"Research Director",3,4240,3,19,2]
[48,"Research & Development",4,"Male",78,3,"Research Director",3,10999,3,27,15]
[41,"Research & Development",2,"Female",42,2,"Research Director",3,5003,3,8,2]
[39,"Research & Development",1,"Female",65,4,"Research Director",4,12742,3,21,21]
[27,"Research & Development",4,"Female",47,2,"Research Director",4,4227,3,4,3]
[35,"Research & Development",3,"Male",45,1,"Research Director",4,3917,4,3,3]
[42,"Research & Development",2,"Male",90,5,"Research Director",3,18303,3,21,1]
[50,"Research & Development",3,"Male",64,1,"Research Director",4,2380,3,8,1]
[59,"Research & Development",3,"Female",69,4,"Research Director",4,13726,3,30,5]
[37,"Research & Development",2,"Female",61,2,"Research Director",2,4777,3,15,1]
[55,"Research & Development",4,"Male",62,2,"Research Director",2,6385,3,17,8]
[41,"Research & Development",1,"Female",55,5,"Research Director",3,19973,4,21,21]
[38,"Research & Development",4,"Male",42,2,"Research Director",4,6861,3,19,1]
[26,"Research & Development",2,"Male",79,2,"Research Director",1,4969,3,7,2]
[52,"Research & Development",1,"Female",57,5,"Research Director",4,19845,3,33,32]
[44,"Research & Development",3,"Female",53,4,"Research Director",4,13320,3,23,12]
[50,"Research & Development",3,"Female",95,2,"Research Director",3,6347,3,19,18]
[36,"Research & Development",4,"Female",43,1,"Research Director",1,2743,3,18,17]
[39,"Research & Development",3,"Female",82,3,"Research Director",1,10880,3,21,21]
[33,"Research & Development",1,"Female",88,1,"Research Director",4,2342,3,3,2]
[45,"Research & Development",2,"Female",90,4,"Research Director",4,17650,3,26,9]
[32,"Research & Development",4,"Female",69,1,"Research Director",3,4025,3,10,8]
[34,"Research & Development",4,"Male",75,2,"Research Director",4,9725,3,16,15]
[59,"Research & Development",2,"Male",66,3,"Research Director",4,11904,3,14,6]
[45,"Research & Development",4,"Male",36,1,"Research Director",2,2177,3,6,6]
[53,"Research & Development",3,"Female",38,3,"Research Director",2,7525,3,30,15]
[36,"Research & Development",3,"Male",81,2,"Research Director",3,4834,3,9,1]
[26,"Research & Development",3,"Male",57,1,"Research Director",1,2042,3,6,3]
[34,"Research & Development",4,"Female",87,1,"Research Director",3,2220,3,1,1]
[28,"Research & Development",1,"Male",74,1,"Research Director",2,1052,4,1,1]
[38,"Research & Development",4,"Male",44,1,"Research Director",3,2821,3,8,2]
[50,"Research & Development",4,"Male",62,5,"Research Director",3,19237,3,29,8]
[37,"Research & Development",3,"Female",35,2,"Research Director",2,4107,3,8,4]
[40,"Research & Development",3,"Male",74,2,"Research Director",1,8396,3,8,7]
[26,"Research & Development",1,"Female",66,1,"Research Scientist",3,2007,3,5,5]
[46,"Research & Development",4,"Male",40,5,"Research Scientist",4,19627,3,23,2]
[54,"Research & Development",4,"Female",41,3,"Research Scientist",3,10686,3,13,9]
[56,"Research & Development",3,"Female",63,1,"Research Scientist",3,2942,3,18,5]
[36,"Research & Development",5,"Female",51,3,"Research Scientist",4,8858,3,15,14]
[55,"Research & Development",1,"Male",40,4,"Research Scientist",1,16756,3,31,9]
[43,"Research & Development",3,"Male",79,3,"Research Scientist",4,10798,3,18,1]
[20,"Research & Development",3,"Female",54,1,"Research Scientist",4,2323,3,2,2]
[21,"Research & Development",3,"Female",36,1,"Research Scientist",1,1416,3,1,1]
[46,"Research & Development",4,"Female",74,2,"Research Scientist",1,4615,4,19,16]
[51,"Research & Development",4,"Male",34,1,"Research Scientist",3,2461,3,18,10]
[28,"Research & Development",2,"Male",72,3,"Research Scientist",1,8722,3,10,10]
[26,"Research & Development",2,"Male",59,1,"Research Scientist",1,3955,3,6,5]
[30,"Research & Development",3,"Male",85,2,"Research Scientist",1,9957,3,7,6]
[41,"Research & Development",2,"Female",43,1,"Research Scientist",3,3376,3,10,10]
[38,"Research & Development",1,"Female",65,3,"Research Scientist",3,8823,3,20,19]
[40,"Research & Development",4,"Male",61,3,"Research Scientist",4,10322,4,14,11]
[27,"Research & Development",5,"Male",87,1,"Research Scientist",3,4621,3,3,3]
[55,"Research & Development",1,"Male",65,3,"Research Scientist",2,10976,3,23,3]
[28,"Research & Development",3,"Female",59,2,"Research Scientist",3,3660,3,10,8]
[44,"Research & Development",2,"Male",91,3,"Research Scientist",1,10482,3,24,20]
[33,"Research & Development",3,"Male",34,3,"Research Scientist",4,7119,3,9,3]
[35,"Research & Development",3,"Male",86,3,"Research Scientist",1,9582,4,9,8]
[33,"Research & Development",4,"Female",54,2,"Research Scientist",3,4508,4,14,13]
[28,"Research & Development",2,"Male",50,1,"Research Scientist",3,2207,3,4,4]
[34,"Research & Development",1,"Male",45,2,"Research Scientist",4,7756,3,7,6]
[37,"Research & Development",4,"Female",88,2,"Research Scientist",4,6694,3,8,1]
[25,"Research & Development",1,"Male",32,1,"Research Scientist",4,3691,3,7,7]
[26,"Research & Development",3,"Male",37,1,"Research Scientist",3,2377,4,1,1]
[33,"Research & Development",3,"Male",55,1,"Research Scientist",2,2313,4,5,2]
[42,"Research & Development",2,"Male",35,4,"Research Scientist",1,17665,3,23,22]
[28,"Research & Development",3,"Male",45,1,"Research Scientist",2,2596,3,1,1]
[50,"Research & Development",4,"Male",81,2,"Research Scientist",3,4728,3,5,0]
[33,"Research & Development",3,"Female",30,2,"Research Scientist",2,4302,3,4,3]
[34,"Research & Development",4,"Male",40,1,"Research Scientist",4,2979,3,6,0]
[48,"Research & Development",4,"Male",35,4,"Research Scientist",4,16885,4,27,5]
[45,"Research & Development",4,"Female",65,2,"Research Scientist",3,5593,3,15,15]
[52,"Research & Development",4,"Male",87,3,"Research Scientist",2,10445,3,18,8]
[38,"Research & Development",4,"Male",73,3,"Research Scientist",3,8740,3,9,8]
[29,"Research & Development",4,"Female",93,1,"Research Scientist",4,2514,4,11,7]
[28,"Research & Development",3,"Female",93,3,"Research Scientist",2,7655,3,10,9]
[46,"Research & Development",1,"Male",52,4,"Research Scientist",3,17465,3,23,12]
[38,"Research & Development",2,"Male",32,3,"Research Scientist",2,7351,3,10,1]
[43,"Research & Development",3,"Female",83,3,"Research Scientist",1,10820,3,18,8]
[39,"Research & Development",3,"Male",84,4,"Research Scientist",4,12169,3,21,18]
[40,"Research & Development",3,"Male",44,5,"Research Scientist",3,19626,3,21,20]
[21,"Research & Development",1,"Female",70,1,"Research Scientist",2,2070,3,2,2]
[39,"Research & Development",3,"Male",70,2,"Research Scientist",2,6782,3,9,5]
[36,"Research & Development",4,"Male",78,2,"Research Scientist",4,7779,4,18,11]
[31,"Research & Development",3,"Male",67,1,"Research Scientist",4,2791,3,3,2]
[28,"Research & Development",1,"Male",67,1,"Research Scientist",2,3201,3,6,5]
[35,"Research & Development",2,"Male",54,2,"Research Scientist",4,4968,3,5,5]
[49,"Research & Development",4,"Male",56,4,"Research Scientist",2,13120,3,22,9]
[34,"Research & Development",2,"Male",95,2,"Research Scientist",3,4033,3,5,3]
[29,"Research & Development",3,"Female",61,1,"Research Scientist",2,3291,3,8,7]
[42,"Research & Development",3,"Male",56,2,"Research Scientist",4,4272,3,16,1]
[29,"Research & Development",1,"Male",79,2,"Research Scientist",4,5056,3,10,10]
[38,"Research & Development",3,"Male",37,1,"Research Scientist",3,2844,3,7,7]
[28,"Research & Development",3,"Male",39,1,"Research Scientist",3,2703,3,3,3]
[18,"Research & Development",1,"Male",80,1,"Research Scientist",3,1904,3,0,0]
[33,"Research & Development",4,"Female",77,2,"Research Scientist",1,8224,3,6,5]
[41,"Research & Development",4,"Male",46,1,"Research Scientist",4,4766,3,6,1]
[31,"Research & Development",3,"Male",72,1,"Research Scientist",3,2610,3,2,2]
[37,"Research & Development",2,"Female",52,2,"Research Scientist",4,5731,3,9,6]
[27,"Research & Development",3,"Male",55,1,"Research Scientist",3,2539,3,4,4]
[34,"Research & Development",1,"Female",70,2,"Research Scientist",3,5714,4,6,6]
[35,"Research & Development",4,"Male",100,1,"Research Scientist",3,4323,3,6,5]
[29,"Research & Development",1,"Female",45,3,"Research Scientist",1,7336,3,11,11]
[40,"Research & Development",4,"Female",88,3,"Research Scientist",3,13499,3,20,18]
[42,"Research & Development",3,"Male",44,4,"Research Scientist",1,13758,3,22,21]
[42,"Research & Development",4,"Male",45,2,"Research Scientist",1,5155,3,9,6]
[35,"Research & Development",4,"Male",58,1,"Research Scientist",3,2258,3,10,8]
[24,"Research & Development",3,"Male",49,1,"Research Scientist",2,3597,4,6,4]
[28,"Research & Development",1,"Female",79,1,"Research Scientist",4,2515,3,1,1]
[26,"Research & Development",4,"Male",82,1,"Research Scientist",4,4420,4,8,8]
[30,"Research & Development",3,"Male",72,2,"Research Scientist",3,6578,3,10,10]
[40,"Research & Development",2,"Female",92,2,"Research Scientist",4,4422,3,16,1]
[35,"Research & Development",3,"Male",44,3,"Research Scientist",2,10274,3,15,7]
[34,"Research & Development",3,"Male",97,2,"Research Scientist",1,5343,4,14,13]
[35,"Research & Development",4,"Male",47,1,"Research Scientist",4,2376,3,2,2]
[43,"Research & Development",3,"Female",85,2,"Research Scientist",3,5346,3,7,4]
[32,"Research & Development",1,"Female",76,1,"Research Scientist",1,2827,3,1,1]
[56,"Research & Development",4,"Female",92,5,"Research Scientist",1,19943,3,28,5]
[29,"Research & Development",1,"Female",54,1,"Research Scientist",4,3131,3,10,10]
[19,"Research & Development",2,"Male",54,1,"Research Scientist",1,2552,4,1,1]
[45,"Research & Development",3,"Female",83,1,"Research Scientist",3,4477,3,7,3]
[37,"Research & Development",3,"Female",56,2,"Research Scientist",4,6474,3,14,14]
[20,"Research & Development",3,"Male",87,1,"Research Scientist",3,3033,3,2,2]
[44,"Research & Development",4,"Male",96,1,"Research Scientist",3,2936,3,6,6]
[53,"Research & Development",2,"Female",50,5,"Research Scientist",3,18606,3,26,7]
[29,"Research & Development",1,"Female",69,1,"Research Scientist",4,2168,3,6,5]
[22,"Research & Development",4,"Male",48,1,"Research Scientist",4,2853,3,1,0]
[46,"Research & Development",3,"Female",69,4,"Research Scientist",1,17048,4,28,26]
[44,"Research & Development",3,"Male",74,1,"Research Scientist",3,2290,3,6,0]
[33,"Research & Development",3,"Male",99,1,"Research Scientist",3,3600,3,5,5]
[41,"Research & Development",2,"Male",95,1,"Research Scientist",1,2107,3,5,1]
[30,"Research & Development",4,"Male",61,2,"Research Scientist",1,4115,3,8,4]
[40,"Research & Development",4,"Male",62,2,"Research Scientist",2,4327,3,5,0]
[50,"Research & Development",3,"Female",30,4,"Research Scientist",1,17856,4,32,2]
[28,"Research & Development",4,"Male",78,1,"Research Scientist",1,3196,3,6,6]
[46,"Research & Development",2,"Male",52,5,"Research Scientist",2,19081,3,25,4]
[35,"Research & Development",4,"Male",94,2,"Research Scientist",1,8966,3,15,7]
[24,"Research & Development",2,"Female",97,1,"Research Scientist",2,2210,3,1,1]
[33,"Research & Development",3,"Female",82,2,"Research Scientist",3,4539,3,10,10]
[36,"Research & Development",4,"Male",60,1,"Research Scientist",3,2741,3,7,7]
[30,"Research & Development",4,"Male",49,2,"Research Scientist",3,3491,3,10,10]
[44,"Research & Development",4,"Male",32,2,"Research Scientist",4,4541,4,20,20]
[20,"Research & Development",3,"Male",43,1,"Research Scientist",4,2678,3,2,2]
[46,"Research & Development",4,"Male",60,2,"Research Scientist",4,7379,3,12,6]
[42,"Research & Development",5,"Male",79,2,"Research Scientist",1,6272,3,10,4]
[60,"Research & Development",4,"Male",52,2,"Research Scientist",4,5220,3,12,11]
[32,"Research & Development",3,"Female",77,1,"Research Scientist",2,2743,4,2,2]
[32,"Research & Development",2,"Female",38,2,"Research Scientist",3,4998,3,10,8]
[36,"Research & Development",3,"Female",77,3,"Research Scientist",1,10252,4,17,7]
[33,"Research & Development",3,"Male",60,1,"Research Scientist",4,2781,3,15,14]
[40,"Research & Development",3,"Female",84,2,"Research Scientist",2,6852,3,7,5]
[25,"Research & Development",4,"Male",57,2,"Research Scientist",4,4950,3,5,4]
[30,"Research & Development",3,"Male",63,1,"Research Scientist",2,3579,4,12,11]
[42,"Research & Development",5,"Female",60,3,"Research Scientist",1,13191,3,20,1]
[35,"Research & Development",2,"Female",78,3,"Research Scientist",4,10377,3,16,13]
[27,"Research & Development",3,"Male",42,1,"Research Scientist",1,2235,3,9,9]
[54,"Research & Development",4,"Female",53,3,"Research Scientist",3,10502,3,33,5]
[44,"Research & Development",1,"Female",72,1,"Research Scientist",4,2011,3,10,10]
[19,"Research & Development",3,"Female",96,1,"Research Scientist",2,1859,4,1,1]
[29,"Research & Development",3,"Female",97,1,"Research Scientist",4,3760,3,3,3]
[54,"Research & Development",3,"Male",85,4,"Research Scientist",4,17779,3,36,10]
[31,"Research & Development",2,"Male",80,2,"Research Scientist",1,6833,3,6,6]
[31,"Research & Development",3,"Female",96,2,"Research Scientist",1,6812,3,10,10]
[59,"Research & Development",3,"Female",48,2,"Research Scientist",4,5171,3,13,6]
[43,"Research & Development",3,"Male",96,5,"Research Scientist",4,19740,3,25,8]
[49,"Research & Development",2,"Male",85,5,"Research Scientist",3,18711,3,23,1]
[36,"Research & Development",3,"Male",46,1,"Research Scientist",2,3692,3,12,11]
[48,"Research & Development",2,"Male",76,1,"Research Scientist",2,2559,3,7,1]
[27,"Research & Development",2,"Male",76,1,"Research Scientist",3,2517,3,5,5]
[29,"Research & Development",3,"Male",82,2,"Research Scientist",4,6623,3,6,6]
[48,"Research & Development",3,"Male",76,5,"Research Scientist",4,18265,3,25,1]
[29,"Research & Development",3,"Female",87,4,"Research Scientist",4,16124,3,9,7]
[34,"Research & Development",3,"Female",89,1,"Research Scientist",3,2585,3,2,1]
[44,"Research & Development",3,"Male",88,5,"Research Scientist",2,18213,3,26,22]
[33,"Research & Development",5,"Male",82,3,"Research Scientist",3,8380,3,10,9]
[19,"Research & Development",3,"Female",57,1,"Research Scientist",4,2994,3,1,1]
[23,"Research & Development",2,"Male",47,1,"Research Scientist",3,1223,4,1,1]
[25,"Research & Development",1,"Male",73,1,"Research Scientist",4,1118,3,1,1]
[26,"Research & Development",2,"Male",53,1,"Research Scientist",4,2875,4,8,8]
[45,"Research & Development",3,"Female",94,5,"Research Scientist",2,18824,3,26,24]
[55,"Research & Development",1,"Male",37,4,"Research Scientist",2,13577,3,34,33]
[21,"Research & Development",2,"Female",45,1,"Research Scientist",3,2625,4,2,2]
[46,"Research & Development",2,"Female",33,5,"Research Scientist",2,18789,3,26,11]
[34,"Research & Development",3,"Female",86,2,"Research Scientist",1,4538,3,4,3]
[51,"Research & Development",3,"Male",83,5,"Research Scientist",2,19847,4,31,29]
[59,"Research & Development",4,"Male",67,3,"Research Scientist",4,10512,3,25,9]
[34,"Research & Development",3,"Female",46,2,"Research Scientist",2,4444,3,15,11]
[28,"Research & Development",4,"Male",44,1,"Research Scientist",3,2154,3,5,4]
[44,"Research & Development",2,"Male",92,5,"Research Scientist",1,19190,3,26,25]
[34,"Research & Development",3,"Male",56,2,"Research Scientist",2,4490,3,14,10]
[35,"Research & Development",1,"Male",66,1,"Research Scientist",3,3506,3,4,3]
[42,"Research & Development",4,"Female",78,2,"Research Scientist",2,2372,3,18,1]
[43,"Research & Development",4,"Female",56,3,"Research Scientist",4,10231,3,23,21]
[36,"Research & Development",4,"Female",53,2,"Research Scientist",2,5410,3,18,16]
[44,"Research & Development",3,"Female",73,3,"Research Scientist",4,7978,3,10,10]
[28,"Research & Development",3,"Male",52,1,"Research Scientist",4,3867,3,2,2]
[51,"Research & Development",2,"Female",40,1,"Research Scientist",3,2838,3,8,7]
[30,"Research & Development",2,"Female",72,2,"Research Scientist",3,4695,3,10,8]
[29,"Research & Development",3,"Female",39,1,"Research Scientist",3,3339,3,10,7]
[28,"Research & Development",3,"Male",84,1,"Research Scientist",1,2080,3,5,3]
[25,"Research & Development",3,"Female",40,1,"Research Scientist",2,2096,3,2,2]
[32,"Research & Development",3,"Male",56,2,"Research Scientist",4,6209,3,10,10]
[45,"Research & Development",3,"Female",83,5,"Research Scientist",2,18061,4,22,0]
[39,"Research & Development",4,"Female",94,4,"Research Scientist",2,17123,3,21,19]
[58,"Research & Development",4,"Male",88,1,"Research Scientist",3,2372,3,2,2]
[32,"Research & Development",2,"Male",79,2,"Research Scientist",3,4883,3,10,10]
[39,"Research & Development",3,"Male",93,1,"Research Scientist",1,3904,3,6,5]
[30,"Research & Development",3,"Female",48,2,"Research Scientist",4,4627,3,10,9]
[36,"Research & Development",4,"Female",63,3,"Research Scientist",3,7094,3,10,7]
[46,"Research & Development",2,"Female",44,1,"Research Scientist",1,3423,3,10,7]
[28,"Research & Development",3,"Female",55,2,"Research Scientist",4,6674,3,10,9]
[50,"Research & Development",3,"Female",43,4,"Research Scientist",1,16880,3,25,3]
[40,"Research & Development",4,"Male",57,3,"Research Scientist",2,9094,3,9,5]
[52,"Research & Development",3,"Male",64,3,"Research Scientist",2,8446,3,10,8]
[30,"Research & Development",4,"Female",95,3,"Research Scientist",1,11916,4,9,9]
[39,"Research & Development",2,"Male",32,2,"Research Scientist",3,4534,3,9,8]
[31,"Research & Development",4,"Female",57,3,"Research Scientist",3,9852,3,10,10]
[41,"Research & Development",2,"Male",40,2,"Research Scientist",2,6151,3,19,19]
[31,"Research & Development",3,"Female",54,1,"Research Scientist",2,2302,3,3,3]
[44,"Research & Development",3,"Male",89,1,"Research Scientist",1,2362,3,10,3]
[42,"Research & Development",1,"Male",37,4,"Research Scientist",3,17861,3,21,20]
[55,"Research & Development",2,"Female",58,5,"Research Scientist",3,19187,3,23,19]
[56,"Research & Development",4,"Male",99,5,"Research Scientist",2,19717,3,36,7]
[40,"Research & Development",2,"Male",74,1,"Research Scientist",3,3544,3,6,4]
[34,"Research & Development",3,"Male",86,3,"Research Scientist",4,8500,3,10,9]
[40,"Research & Development",3,"Male",98,2,"Research Scientist",4,4661,3,9,9]
[41,"Research & Development",3,"Female",66,2,"Research Scientist",1,4103,3,10,9]
[35,"Research & Development",4,"Male",87,2,"Research Scientist",3,4249,3,9,9]
[51,"Research & Development",3,"Male",84,4,"Research Scientist",2,14026,3,33,33]
[38,"Research & Development",2,"Female",31,2,"Research Scientist",1,6893,3,11,7]
[34,"Research & Development",2,"Female",66,2,"Research Scientist",1,6125,3,10,10]
[25,"Research & Development",1,"Male",67,1,"Research Scientist",4,3669,3,7,3]
[58,"Research & Development",4,"Female",53,3,"Research Scientist",1,10008,3,31,10]
[40,"Research & Development",4,"Male",88,1,"Research Scientist",2,2387,4,7,4]
[36,"Research & Development",3,"Female",83,2,"Research Scientist",1,4639,3,17,15]
[48,"Research & Development",3,"Male",54,3,"Research Scientist",4,7898,3,11,10]
[27,"Research & Development",3,"Female",98,1,"Research Scientist",4,2534,3,5,1]
[51,"Research & Development",2,"Female",82,4,"Research Scientist",2,13142,3,29,5]
[18,"Research & Development",3,"Female",97,1,"Research Scientist",4,1611,3,0,0]
[35,"Research & Development",3,"Female",60,2,"Research Scientist",4,5363,3,10,9]
[27,"Research & Development",1,"Male",43,2,"Research Scientist",4,5071,4,8,6]
[55,"Research & Development",4,"Male",85,4,"Research Scientist",3,13695,3,24,19]
[56,"Research & Development",3,"Male",68,4,"Research Scientist",2,13402,3,33,19]
[34,"Research & Development",1,"Female",92,1,"Research Scientist",3,2029,4,5,5]
[40,"Research & Development",1,"Female",89,2,"Research Scientist",3,6377,4,15,12]
[34,"Research & Development",3,"Male",86,2,"Research Scientist",3,5429,3,10,8]
[31,"Research & Development",3,"Female",90,1,"Research Scientist",4,2785,3,3,1]
[35,"Research & Development",4,"Female",67,2,"Research Scientist",3,4614,3,5,4]
[38,"Research & Development",3,"Male",57,1,"Research Scientist",3,2610,3,4,4]
[34,"Research & Development",4,"Female",98,2,"Research Scientist",4,6687,3,14,14]
[28,"Research & Development",3,"Male",48,2,"Research Scientist",1,4724,3,5,5]
[31,"Research & Development",4,"Male",98,2,"Research Scientist",3,6179,3,10,10]
[39,"Research & Development",4,"Male",44,2,"Research Scientist",4,6120,3,8,5]
[51,"Research & Development",3,"Male",52,3,"Research Scientist",2,10596,3,14,4]
[41,"Research & Development",3,"Female",75,2,"Research Scientist",4,5467,3,12,6]
[37,"Research & Development",1,"Male",54,1,"Research Scientist",3,2996,3,8,6]
[33,"Research & Development",1,"Male",61,2,"Research Scientist",4,9998,3,8,5]
[32,"Research & Development",1,"Male",36,2,"Research Scientist",2,4078,3,4,3]
[39,"Research & Development",2,"Male",71,3,"Research Scientist",3,10920,4,13,6]
[25,"Research & Development",1,"Male",93,2,"Research Scientist",3,6232,3,6,3]
[52,"Research & Development",2,"Female",59,4,"Research Scientist",3,13247,3,24,5]
[43,"Research & Development",3,"Female",73,2,"Research Scientist",3,4081,3,20,20]
[27,"Research & Development",3,"Female",98,2,"Research Scientist",4,5769,3,6,6]
[27,"Research & Development",4,"Female",51,1,"Research Scientist",3,2394,3,8,8]
[26,"Research & Development",1,"Male",36,1,"Research Scientist",4,3904,3,5,4]
[42,"Research & Development",3,"Female",31,4,"Research Scientist",1,16799,3,21,20]
[52,"Research & Development",4,"Female",54,1,"Research Scientist",1,2950,3,12,5]
[37,"Research & Development",3,"Female",94,1,"Research Scientist",3,3629,3,8,3]
[35,"Research & Development",2,"Male",60,3,"Research Scientist",4,9362,3,10,2]
[25,"Research & Development",3,"Male",81,1,"Research Scientist",4,3229,3,7,3]
[26,"Research & Development",3,"Male",100,1,"Research Scientist",1,3578,3,8,7]
[29,"Research & Development",3,"Male",51,3,"Research Scientist",1,7988,3,10,10]
[49,"Research & Development",2,"Male",97,2,"Research Scientist",1,4284,4,20,4]
[29,"Research & Development",1,"Female",84,3,"Research Scientist",4,7553,3,9,8]
[54,"Research & Development",3,"Female",54,4,"Research Scientist",4,17328,3,29,20]
[58,"Research & Development",3,"Female",76,5,"Research Scientist",1,19701,4,32,9]
[55,"Research & Development",4,"Male",81,4,"Research Scientist",4,14732,3,31,7]
[36,"Research & Development",4,"Female",99,2,"Research Scientist",2,9278,3,15,5]
[31,"Research & Development",4,"Female",50,1,"Research Scientist",3,1359,3,1,1]
[30,"Research & Development",4,"Female",73,2,"Research Scientist",1,4779,3,8,3]
[31,"Research & Development",5,"Female",93,4,"Research Scientist",2,16422,3,9,3]
[34,"Research & Development",4,"Male",91,1,"Research Scientist",1,2996,3,10,4]
[31,"Research & Development",3,"Female",34,1,"Research Scientist",2,1261,3,1,1]
[27,"Research & Development",1,"Male",91,1,"Research Scientist",1,2099,3,6,5]
[36,"Research & Development",4,"Male",37,2,"Research Scientist",4,5810,3,10,10]
[36,"Research & Development",4,"Female",98,2,"Research Scientist",1,5647,3,11,3]
[47,"Research & Development",3,"Male",74,1,"Research Scientist",4,3420,3,17,6]
[25,"Research & Development",2,"Male",68,1,"Research Scientist",1,4400,3,6,3]
[37,"Research & Development",2,"Male",84,1,"Research Scientist",3,3500,3,7,6]
[56,"Research & Development",2,"Female",90,1,"Research Scientist",1,2066,4,5,3]
[47,"Sales",4,"Female",82,4,"Research Scientist",3,17169,3,26,20]
[24,"Sales",1,"Female",42,2,"Research Scientist",3,4162,3,5,5]
[32,"Sales",5,"Male",97,2,"Research Scientist",4,9204,3,7,4]
[34,"Sales",3,"Female",86,1,"Research Scientist",2,3294,3,7,5]
[41,"Sales",5,"Male",90,1,"Research Scientist",3,2127,3,7,4]
[40,"Sales",4,"Male",81,2,"Research Scientist",3,3975,3,11,8]
[31,"Sales",2,"Male",31,3,"Research Scientist",4,10793,3,13,13]
[46,"Sales",3,"Male",52,3,"Research Scientist",4,10096,3,28,7]
[39,"Sales",3,"Female",54,1,"Research Scientist",1,3646,4,11,1]
[31,"Sales",5,"Female",100,3,"Research Scientist",2,7446,3,10,10]
[45,"Sales",3,"Male",95,3,"Research Scientist",1,10851,3,24,7]
[31,"Sales",2,"Female",96,1,"Research Scientist",2,2109,3,8,3]
[31,"Sales",3,"Male",94,1,"Research Scientist",4,3722,3,7,2]
[45,"Sales",3,"Male",55,3,"Research Scientist",4,9380,3,10,3]
[48,"Sales",3,"Male",96,2,"Research Scientist",1,5486,3,15,2]
[34,"Sales",4,"Female",52,1,"Research Scientist",3,2742,3,2,2]
[40,"Sales",1,"Male",55,3,"Research Scientist",2,13757,3,16,9]
[28,"Sales",3,"Male",84,2,"Research Scientist",1,8463,3,6,5]
[44,"Sales",3,"Male",90,1,"Research Scientist",3,3162,3,7,5]
[53,"Sales",3,"Male",39,4,"Research Scientist",2,16598,3,35,9]
[49,"Sales",4,"Male",96,2,"Research Scientist",3,6651,3,20,3]
[40,"Sales",3,"Male",68,1,"Research Scientist",3,2345,3,8,3]
[44,"Sales",3,"Male",49,1,"Research Scientist",2,3420,3,6,5]
[33,"Sales",3,"Male",54,2,"Research Scientist",1,4373,3,5,4]
[34,"Sales",3,"Male",81,2,"Research Scientist",1,4759,3,15,13]
[30,"Sales",1,"Male",96,2,"Research Scientist",3,5301,3,4,2]
[42,"Sales",2,"Female",74,1,"Research Scientist",4,3673,3,12,12]
[44,"Sales",5,"Female",79,2,"Research Scientist",3,4768,3,11,1]
[30,"Sales",3,"Male",64,1,"Research Scientist",3,1274,3,1,1]
[57,"Sales",2,"Male",93,2,"Research Scientist",3,4900,4,13,12]
[49,"Sales",4,"Male",35,3,"Research Scientist",2,10466,3,29,8]
[34,"Sales",3,"Male",71,4,"Research Scientist",1,17007,3,16,14]
[28,"Sales",3,"Male",92,1,"Research Scientist",3,2909,3,5,3]
[29,"Sales",3,"Female",51,2,"Research Scientist",2,5765,3,7,5]
[34,"Sales",4,"Female",40,2,"Research Scientist",2,4599,4,16,15]
[35,"Sales",1,"Male",76,1,"Research Scientist",3,2404,3,1,1]
[24,"Sales",3,"Male",89,1,"Research Scientist",1,3172,3,4,0]
[24,"Sales",2,"Female",78,1,"Sales Executive",2,2033,3,1,1]
[44,"Sales",1,"Male",86,3,"Sales Executive",3,10209,3,16,2]
[29,"Sales",3,"Male",77,2,"Sales Executive",3,8620,3,10,10]
[30,"Sales",3,"Male",46,1,"Sales Executive",3,2064,4,6,5]
[55,"Sales",4,"Male",30,2,"Sales Executive",3,4035,3,4,3]
[33,"Sales",4,"Female",82,1,"Sales Executive",2,3838,3,8,5]
[47,"Sales",3,"Female",78,2,"Sales Executive",3,4591,3,11,5]
[28,"Sales",2,"Male",38,1,"Sales Executive",1,2561,3,8,0]
[28,"Sales",3,"Male",72,1,"Sales Executive",3,1563,3,1,1]
[28,"Sales",3,"Male",55,2,"Sales Executive",1,4898,3,5,4]
[49,"Sales",2,"Female",43,2,"Sales Executive",1,4789,4,10,3]
[29,"Sales",1,"Female",97,1,"Sales Executive",2,3180,3,4,3]
[28,"Sales",1,"Male",96,2,"Sales Executive",2,6549,3,8,8]
[33,"Sales",5,"Male",69,2,"Sales Executive",3,6388,3,14,0]
[32,"Sales",3,"Male",64,3,"Sales Executive",4,11244,4,10,5]
[54,"Sales",4,"Female",87,4,"Sales Executive",4,16032,4,26,14]
[29,"Sales",4,"Male",100,1,"Sales Executive",1,2362,3,11,9]
[44,"Sales",3,"Male",32,4,"Sales Executive",1,16328,3,24,20]
[39,"Sales",3,"Female",32,3,"Sales Executive",2,8376,3,9,2]
[46,"Sales",3,"Female",51,4,"Sales Executive",2,16606,3,23,13]
[35,"Sales",3,"Female",91,3,"Sales Executive",2,8606,3,11,11]
[23,"Sales",1,"Male",97,2,"Sales Executive",3,2272,3,5,4]
[40,"Sales",4,"Male",86,1,"Sales Executive",1,2018,3,15,5]
[34,"Sales",3,"Male",64,3,"Sales Executive",3,7083,3,10,10]
[31,"Sales",3,"Female",33,1,"Sales Executive",3,4084,3,7,7]
[50,"Sales",5,"Male",88,4,"Sales Executive",4,14411,3,32,32]
[34,"Sales",2,"Male",55,1,"Sales Executive",3,2308,4,12,11]
[42,"Sales",3,"Male",68,1,"Sales Executive",2,4841,3,4,1]
[37,"Sales",3,"Male",47,2,"Sales Executive",4,4285,3,10,10]
[29,"Sales",1,"Female",39,2,"Sales Executive",1,9715,3,9,7]
[33,"Sales",3,"Male",44,2,"Sales Executive",2,4320,3,5,5]
[45,"Sales",3,"Male",97,1,"Sales Executive",4,2132,4,8,5]
[42,"Sales",3,"Male",40,3,"Sales Executive",4,10124,3,24,20]
[40,"Sales",2,"Male",47,2,"Sales Executive",1,5473,3,9,8]
[33,"Sales",4,"Male",79,2,"Sales Executive",3,5207,3,15,15]
[40,"Sales",2,"Male",38,4,"Sales Executive",4,16437,4,21,21]
[24,"Sales",2,"Male",57,1,"Sales Executive",1,2296,3,2,1]
[40,"Sales",2,"Male",72,2,"Sales Executive",4,4069,3,8,2]
[45,"Sales",4,"Male",66,3,"Sales Executive",2,7441,3,10,10]
[35,"Sales",4,"Female",98,1,"Sales Executive",3,2430,4,6,5]
[32,"Sales",2,"Female",67,2,"Sales Executive",2,5878,3,12,7]
[36,"Sales",4,"Male",70,1,"Sales Executive",4,2644,4,7,3]
[48,"Sales",4,"Female",96,2,"Sales Executive",3,6439,3,18,8]
[29,"Sales",3,"Male",91,1,"Sales Executive",3,2451,3,5,1]
[33,"Sales",4,"Male",46,2,"Sales Executive",1,6392,3,8,2]
[30,"Sales",3,"Male",64,2,"Sales Executive",1,9714,3,10,10]
[38,"Sales",4,"Male",71,2,"Sales Executive",3,6077,3,10,6]
[35,"Sales",3,"Male",68,1,"Sales Executive",1,2450,3,3,3]
[30,"Sales",4,"Male",33,3,"Sales Executive",2,9250,3,9,4]
[35,"Sales",3,"Female",69,1,"Sales Executive",1,2074,3,1,1]
[53,"Sales",5,"Female",78,3,"Sales Executive",4,10169,3,34,33]
[38,"Sales",3,"Male",81,2,"Sales Executive",2,4855,3,7,5]
[32,"Sales",4,"Male",62,2,"Sales Executive",1,4087,3,9,6]
[48,"Sales",4,"Female",65,1,"Sales Executive",1,2367,3,10,8]
[34,"Sales",4,"Male",35,1,"Sales Executive",4,2972,3,1,1]
[55,"Sales",5,"Male",60,5,"Sales Executive",4,19586,4,36,36]
[34,"Sales",4,"Male",45,2,"Sales Executive",4,5484,3,9,2]
[26,"Sales",3,"Female",89,1,"Sales Executive",4,2061,4,1,1]
[38,"Sales",3,"Male",80,2,"Sales Executive",2,9924,3,10,9]
[38,"Sales",3,"Female",90,2,"Sales Executive",2,4198,3,8,3]
[36,"Sales",4,"Female",73,2,"Sales Executive",3,6815,3,15,1]
[29,"Sales",1,"Male",87,1,"Sales Executive",1,4723,3,10,10]
[35,"Sales",4,"Female",51,2,"Sales Executive",3,6142,3,10,5]
[39,"Sales",3,"Male",38,3,"Sales Executive",3,8237,3,11,7]
[29,"Sales",1,"Male",87,2,"Sales Executive",4,8853,3,6,6]
[50,"Sales",3,"Male",59,5,"Sales Executive",3,19331,3,27,1]
[23,"Sales",3,"Male",45,1,"Sales Executive",3,2073,3,4,2]
[36,"Sales",4,"Male",80,2,"Sales Executive",1,5562,3,9,3]
[42,"Sales",2,"Male",93,5,"Sales Executive",4,19613,4,24,1]
[35,"Sales",3,"Male",46,2,"Sales Executive",3,3407,3,10,10]
[34,"Sales",4,"Male",92,2,"Sales Executive",3,5063,3,8,8]
[40,"Sales",2,"Female",84,2,"Sales Executive",1,4639,3,5,5]
[43,"Sales",3,"Male",87,1,"Sales Executive",2,4876,3,8,6]
[35,"Sales",2,"Male",63,1,"Sales Executive",4,2690,3,1,1]
[46,"Sales",4,"Male",56,4,"Sales Executive",1,17567,3,27,26]
[28,"Sales",3,"Male",51,1,"Sales Executive",2,2408,3,1,1]
[22,"Sales",2,"Female",85,1,"Sales Executive",3,2814,3,4,4]
[50,"Sales",5,"Male",41,4,"Sales Executive",3,11245,3,32,30]
[32,"Sales",4,"Female",35,1,"Sales Executive",4,3312,3,6,3]
[44,"Sales",3,"Female",31,5,"Sales Executive",4,19049,3,23,22]
[30,"Sales",3,"Male",48,1,"Sales Executive",2,2141,3,6,6]
[45,"Sales",5,"Female",50,2,"Sales Executive",1,5769,3,10,10]
[45,"Sales",3,"Male",52,2,"Sales Executive",1,4385,3,10,10]
[31,"Sales",4,"Male",54,2,"Sales Executive",1,5332,3,10,5]
[36,"Sales",4,"Female",76,2,"Sales Executive",3,4663,3,7,3]
[34,"Sales",4,"Male",42,2,"Sales Executive",4,4724,3,9,9]
[49,"Sales",4,"Female",84,1,"Sales Executive",1,3211,3,10,9]
[39,"Sales",5,"Male",76,2,"Sales Executive",1,5377,3,10,7]
[27,"Sales",3,"Male",67,1,"Sales Executive",1,4066,3,7,7]
[35,"Sales",5,"Male",48,2,"Sales Executive",1,5208,3,16,16]
[28,"Sales",3,"Female",39,2,"Sales Executive",1,4877,4,6,5]
[21,"Sales",1,"Male",97,1,"Sales Executive",4,3117,3,3,2]
[18,"Sales",2,"Female",70,1,"Sales Executive",4,1569,3,0,0]
[47,"Sales",4,"Female",98,5,"Sales Executive",3,19658,3,27,5]
[39,"Sales",2,"Male",76,2,"Sales Executive",3,3069,3,11,10]
[40,"Sales",3,"Female",80,3,"Sales Executive",3,10435,3,18,18]
[35,"Sales",4,"Female",52,2,"Sales Executive",3,4148,3,15,14]
[37,"Sales",3,"Male",85,2,"Sales Executive",3,5768,3,9,4]
[39,"Sales",3,"Female",81,2,"Sales Executive",3,5042,3,10,9]
[45,"Sales",2,"Female",59,2,"Sales Executive",4,5770,3,10,10]
[38,"Sales",2,"Female",54,3,"Sales Executive",3,7756,3,10,5]
[35,"Sales",3,"Male",55,3,"Sales Executive",1,10306,3,15,13]
[37,"Sales",3,"Female",71,1,"Sales Executive",2,3936,3,8,8]
[40,"Sales",3,"Female",84,3,"Sales Executive",4,7945,3,18,4]
[44,"Sales",5,"Male",37,2,"Sales Executive",4,5743,3,14,10]
[48,"Sales",5,"Male",89,4,"Sales Executive",4,15202,4,23,2]
[35,"Sales",2,"Male",59,2,"Sales Executive",4,5440,3,7,2]
[24,"Sales",1,"Female",32,1,"Sales Executive",4,3760,3,6,6]
[27,"Sales",3,"Female",86,1,"Sales Executive",3,3517,3,5,3]
[27,"Sales",3,"Male",87,1,"Sales Executive",4,2580,3,6,4]
[40,"Sales",3,"Male",73,1,"Sales Executive",1,2166,3,10,4]
[29,"Sales",3,"Male",42,2,"Sales Executive",3,5869,3,8,5]
[36,"Sales",4,"Female",42,3,"Sales Executive",1,8008,3,9,3]
[25,"Sales",1,"Male",77,2,"Sales Executive",3,5206,3,7,7]
[39,"Sales",3,"Male",66,2,"Sales Executive",2,5295,4,7,5]
[49,"Sales",4,"Female",72,4,"Sales Executive",2,16413,3,27,4]
[50,"Sales",5,"Female",50,3,"Sales Executive",1,13269,3,19,14]
[20,"Sales",3,"Female",31,1,"Sales Executive",3,2783,3,2,2]
[34,"Sales",3,"Female",66,2,"Sales Executive",2,5433,3,11,11]
[36,"Sales",3,"Male",77,1,"Sales Executive",2,2013,3,15,4]
[49,"Sales",1,"Female",41,4,"Sales Executive",3,13966,3,30,15]
[36,"Sales",4,"Female",33,2,"Sales Executive",3,4374,3,4,3]
[36,"Sales",2,"Male",79,2,"Sales Executive",1,6842,4,13,5]
[54,"Sales",5,"Female",91,4,"Sales Executive",3,17426,4,36,10]
[43,"Sales",2,"Male",65,4,"Sales Executive",3,17603,4,14,14]
[35,"Sales",4,"Male",36,2,"Sales Executive",4,4581,4,13,11]
[38,"Sales",3,"Male",90,2,"Sales Executive",4,4735,3,19,13]
[29,"Sales",3,"Male",43,2,"Sales Executive",2,4187,3,10,10]
[33,"Sales",4,"Male",93,2,"Sales Executive",4,5505,3,6,6]
[32,"Sales",3,"Male",45,2,"Sales Executive",2,5470,3,10,9]
[31,"Sales",4,"Female",67,2,"Sales Executive",4,5476,3,10,10]
[49,"Sales",3,"Female",74,1,"Sales Executive",1,2587,3,17,2]
[38,"Sales",3,"Female",42,1,"Sales Executive",2,2440,4,4,4]
[47,"Sales",4,"Female",47,4,"Sales Executive",2,15972,3,29,3]
[49,"Sales",3,"Male",36,4,"Sales Executive",3,15379,3,23,8]
[41,"Sales",2,"Male",80,3,"Sales Executive",3,7082,3,21,2]
[20,"Sales",1,"Male",54,1,"Sales Executive",1,2728,3,2,2]
[33,"Sales",3,"Female",36,2,"Sales Executive",4,5368,4,7,6]
[36,"Sales",4,"Male",80,2,"Sales Executive",3,5347,3,10,3]
[44,"Sales",3,"Female",44,1,"Sales Executive",4,3195,3,8,2]
[23,"Sales",1,"Male",93,1,"Sales Executive",3,3989,3,5,5]
[38,"Sales",2,"Female",87,1,"Sales Executive",3,3306,3,7,0]
[53,"Sales",4,"Male",48,3,"Sales Executive",4,7005,3,11,4]
[48,"Sales",2,"Female",95,1,"Sales Executive",3,2655,3,19,9]
[32,"Sales",4,"Male",95,1,"Sales Executive",2,1393,3,1,1]
[26,"Sales",3,"Male",76,1,"Sales Executive",4,2570,4,7,7]
[55,"Sales",3,"Male",94,1,"Sales Executive",2,3537,3,8,4]
[34,"Sales",2,"Male",57,2,"Sales Executive",4,3986,3,15,15]
[60,"Sales",4,"Male",92,3,"Sales Executive",4,10883,4,19,1]
[33,"Sales",3,"Male",79,1,"Sales Executive",2,2028,3,14,14]
[37,"Sales",4,"Male",31,2,"Sales Executive",4,9525,3,6,6]
[34,"Sales",3,"Female",35,1,"Sales Executive",4,2929,3,10,10]
[23,"Sales",3,"Male",99,1,"Sales Executive",4,2275,4,3,3]
[44,"Sales",3,"Female",96,3,"Sales Executive",4,7879,3,9,8]
[35,"Sales",4,"Male",79,1,"Sales Executive",4,4930,3,6,5]
[43,"Sales",3,"Male",73,2,"Sales Executive",4,7847,3,10,10]
[24,"Sales",3,"Male",62,1,"Sales Executive",3,4401,3,5,5]
[41,"Sales",3,"Male",35,3,"Sales Executive",3,9241,3,10,10]
[29,"Sales",4,"Female",43,1,"Sales Executive",3,2974,3,9,5]
[36,"Sales",4,"Female",51,2,"Sales Executive",4,4502,3,17,13]
[45,"Sales",1,"Male",74,3,"Sales Executive",3,10748,4,25,23]
[24,"Sales",1,"Male",58,1,"Sales Executive",3,1555,3,1,1]
[47,"Sales",3,"Male",82,4,"Sales Executive",3,12936,3,25,23]
[26,"Sales",4,"Male",62,1,"Sales Executive",3,2305,3,3,3]
[45,"Sales",2,"Female",48,4,"Sales Executive",2,16704,3,21,21]
[32,"Sales",3,"Male",56,1,"Sales Executive",3,3433,3,10,5]
[31,"Sales",4,"Male",69,1,"Sales Executive",3,3477,3,6,5]
[41,"Sales",3,"Male",60,2,"Sales Executive",2,6430,3,10,3]
[40,"Sales",2,"Female",92,2,"Sales Executive",1,6516,3,18,1]
[24,"Sales",1,"Male",91,1,"Sales Executive",1,3907,3,6,6]
[46,"Sales",4,"Male",34,2,"Sales Executive",2,5562,3,19,10]
[35,"Sales",4,"Male",49,2,"Sales Executive",3,6883,3,17,7]
[30,"Sales",1,"Male",33,1,"Sales Executive",4,2862,3,10,10]
[47,"Sales",4,"Male",87,2,"Sales Executive",2,4978,3,4,1]
[46,"Sales",3,"Male",74,3,"Sales Executive",4,10368,3,13,10]
[36,"Sales",5,"Male",96,2,"Sales Executive",1,6134,3,16,2]
[32,"Sales",2,"Male",34,2,"Sales Executive",2,6735,3,10,0]
[23,"Sales",1,"Female",51,1,"Sales Executive",2,3295,3,3,3]
[31,"Sales",1,"Female",30,2,"Sales Executive",4,5238,4,9,5]
[39,"Sales",3,"Male",77,2,"Sales Executive",4,6472,3,9,9]
[32,"Sales",3,"Male",80,3,"Sales Executive",3,9610,3,10,4]
[40,"Sales",4,"Male",88,5,"Sales Executive",2,19833,3,21,21]
[45,"Sales",3,"Female",56,3,"Sales Executive",3,9756,4,9,5]
[30,"Sales",4,"Female",78,1,"Sales Executive",1,4968,3,10,9]
[24,"Sales",3,"Male",59,1,"Sales Executive",4,2145,3,3,2]
[30,"Sales",3,"Female",66,1,"Sales Executive",4,2180,3,6,4]
[31,"Sales",3,"Male",51,2,"Sales Executive",3,8346,3,6,5]
[27,"Sales",3,"Female",67,1,"Sales Executive",4,3445,3,6,6]
[29,"Sales",3,"Female",52,1,"Sales Executive",2,2760,3,2,2]
[29,"Sales",3,"Male",70,2,"Sales Executive",3,6294,3,10,3]
[30,"Sales",2,"Male",94,3,"Sales Executive",1,7140,3,12,7]
[34,"Sales",4,"Male",97,1,"Sales Executive",4,2932,3,6,5]
[33,"Sales",3,"Female",62,2,"Sales Executive",2,5147,3,13,11]
[49,"Sales",4,"Female",80,2,"Sales Executive",4,4507,3,8,5]
[33,"Sales",3,"Female",74,3,"Sales Executive",1,8564,4,11,0]
[38,"Sales",2,"Female",75,1,"Sales Executive",2,2468,3,9,6]
[31,"Sales",4,"Male",70,3,"Sales Executive",3,8161,3,10,1]
[29,"Sales",3,"Female",91,1,"Sales Executive",1,2109,3,1,1]
[30,"Sales",3,"Male",58,2,"Sales Executive",3,5294,3,10,7]
[32,"Sales",4,"Male",65,1,"Sales Executive",2,2718,3,12,7]
[38,"Sales",3,"Male",60,2,"Sales Executive",4,5811,3,15,1]
[43,"Sales",3,"Male",38,1,"Sales Executive",3,2437,3,6,1]
[42,"Sales",3,"Male",57,1,"Sales Executive",2,2766,4,7,5]
[55,"Sales",3,"Male",60,5,"Sales Executive",1,19038,3,34,1]
[33,"Sales",3,"Male",90,2,"Sales Executive",2,3055,3,11,9]
[41,"Sales",4,"Male",94,1,"Sales Executive",1,2289,4,5,5]
[34,"Sales",3,"Male",87,2,"Sales Executive",3,4001,3,15,15]
[53,"Sales",4,"Female",60,4,"Sales Executive",3,12965,4,27,3]
[43,"Sales",3,"Male",97,1,"Sales Executive",4,3539,3,10,9]
[34,"Sales",2,"Female",32,2,"Sales Executive",4,6029,3,6,2]
[21,"Sales",1,"Male",31,1,"Sales Executive",2,2679,3,1,1]
[38,"Sales",2,"Female",40,1,"Sales Executive",3,3702,3,5,5]
[22,"Sales",1,"Female",79,1,"Sales Executive",1,2398,3,1,1]
[31,"Sales",4,"Female",91,2,"Sales Executive",4,5468,3,13,12]
[51,"Sales",3,"Female",53,3,"Sales Executive",3,13116,3,15,2]
[37,"Sales",2,"Male",46,2,"Sales Executive",2,4189,3,5,5]
[46,"Sales",4,"Male",46,5,"Sales Executive",4,19328,3,24,2]
[36,"Sales",3,"Male",90,3,"Sales Executive",1,8321,3,15,12]
[44,"Sales",2,"Male",99,1,"Sales Executive",2,2342,3,6,5]
[37,"Sales",2,"Male",89,2,"Sales Executive",2,4071,3,19,10]
[35,"Sales",3,"Male",84,2,"Sales Executive",4,5813,3,10,10]
[33,"Sales",4,"Male",90,1,"Sales Executive",1,3143,3,14,10]
[28,"Sales",3,"Male",82,1,"Sales Executive",4,2044,3,5,5]
[39,"Sales",1,"Male",65,3,"Sales Executive",3,13464,4,9,4]
[46,"Sales",2,"Male",98,2,"Sales Executive",2,7991,3,6,2]
[40,"Sales",2,"Female",99,1,"Sales Executive",1,3377,3,7,4]
[42,"Sales",3,"Male",95,2,"Sales Executive",1,5538,3,10,0]
[35,"Sales",2,"Male",90,2,"Sales Executive",4,5762,3,15,7]
[38,"Sales",3,"Male",100,1,"Sales Executive",2,2592,3,13,11]
[34,"Sales",4,"Male",93,2,"Sales Executive",1,5346,3,11,7]
[37,"Sales",4,"Male",58,2,"Sales Executive",1,4213,3,10,10]
[39,"Sales",3,"Male",83,2,"Sales Executive",4,4127,3,7,2]
[43,"Sales",3,"Male",52,1,"Sales Executive",3,2438,3,7,3]
[41,"Sales",3,"Male",85,2,"Sales Executive",2,6870,3,11,3]
[41,"Sales",1,"Female",81,3,"Sales Executive",3,10447,3,23,22]
[30,"Sales",3,"Female",64,3,"Sales Executive",3,9667,3,9,7]
[26,"Sales",2,"Female",69,1,"Sales Executive",2,2148,3,6,5]
[46,"Sales",2,"Female",66,2,"Sales Executive",2,8926,4,13,9]
[40,"Sales",3,"Female",52,2,"Sales Executive",4,6513,3,12,5]
[34,"Sales",2,"Male",92,2,"Sales Executive",3,6799,4,10,10]
[58,"Sales",3,"Male",52,4,"Sales Executive",2,16291,4,37,16]
[35,"Sales",4,"Male",91,1,"Sales Executive",3,2705,3,6,5]
[47,"Sales",3,"Female",92,3,"Sales Executive",2,10333,3,28,22]
[40,"Sales",3,"Female",47,2,"Sales Executive",1,4448,3,15,7]
[54,"Sales",4,"Female",68,2,"Sales Executive",4,6854,3,14,7]
[31,"Sales",4,"Female",68,3,"Sales Executive",1,9637,3,9,3]
[28,"Sales",3,"Female",67,1,"Sales Executive",1,3591,4,3,3]
[38,"Sales",4,"Female",77,2,"Sales Executive",4,5405,4,20,4]
[26,"Sales",3,"Male",46,2,"Sales Executive",4,4684,3,5,5]
[58,"Sales",4,"Male",87,4,"Sales Executive",3,15787,3,23,2]
[18,"Sales",3,"Female",33,1,"Sales Executive",3,1514,3,0,0]
[31,"Sales",5,"Male",89,1,"Sales Executive",1,2956,3,2,1]
[29,"Sales",3,"Male",56,1,"Sales Executive",1,2335,3,4,2]
[45,"Sales",4,"Female",67,2,"Sales Executive",3,5154,4,10,8]
[36,"Sales",4,"Female",73,2,"Sales Executive",2,6962,4,15,1]
[43,"Sales",4,"Male",92,2,"Sales Executive",4,5675,4,7,7]
[27,"Sales",2,"Female",53,1,"Sales Executive",4,2379,3,6,5]
[29,"Sales",1,"Male",40,1,"Sales Executive",4,3812,3,11,11]
[32,"Sales",4,"Male",79,2,"Sales Executive",4,4648,3,4,0]
[42,"Sales",4,"Male",38,1,"Sales Executive",3,2936,4,10,6]
[47,"Sales",4,"Female",64,1,"Sales Executive",3,2105,3,7,2]
[46,"Sales",2,"Male",82,3,"Sales Executive",4,8578,3,12,9]
[28,"Sales",2,"Male",43,1,"Sales Executive",4,2706,3,3,3]
[29,"Sales",1,"Male",93,2,"Sales Executive",3,6384,3,11,7]
[42,"Sales",3,"Male",81,1,"Sales Executive",3,3968,3,8,0]
[32,"Sales",4,"Male",82,2,"Sales Executive",2,9907,3,7,2]
[46,"Sales",3,"Female",45,4,"Sales Executive",1,13225,3,25,19]
[27,"Sales",1,"Female",36,2,"Sales Executive",3,3540,4,9,9]
[29,"Sales",1,"Male",87,1,"Sales Executive",2,2804,3,1,1]
[43,"Sales",3,"Female",81,5,"Sales Executive",3,19392,3,21,16]
[48,"Sales",3,"Male",91,5,"Sales Executive",2,19665,3,29,22]
[29,"Sales",2,"Male",73,1,"Sales Executive",4,2439,4,1,1]
[46,"Sales",3,"Female",64,3,"Sales Executive",2,7314,4,14,8]
[27,"Sales",3,"Female",77,1,"Sales Executive",1,4774,3,8,7]
[39,"Sales",4,"Male",41,2,"Sales Executive",4,3902,3,7,2]
[55,"Sales",4,"Male",98,1,"Sales Executive",4,2662,4,19,5]
[28,"Sales",3,"Female",78,1,"Sales Executive",2,2856,3,1,1]
[30,"Sales",3,"Male",89,1,"Sales Executive",4,1081,3,1,1]
[22,"Sales",1,"Male",75,1,"Sales Executive",2,2472,4,1,1]
[36,"Sales",4,"Female",63,2,"Sales Executive",3,5673,3,10,10]
[31,"Sales",3,"Male",89,2,"Sales Executive",3,4197,3,10,10]
[34,"Sales",3,"Male",64,3,"Sales Executive",4,9713,3,9,5]
[29,"Sales",3,"Male",59,1,"Sales Executive",1,2062,3,11,3]
[37,"Sales",4,"Male",78,2,"Sales Executive",1,4284,4,16,5]
[35,"Sales",2,"Female",44,2,"Sales Executive",2,4788,3,4,3]
[45,"Sales",2,"Female",93,2,"Sales Executive",4,5906,3,10,9]
[36,"Sales",1,"Male",94,2,"Sales Executive",4,3886,4,10,10]
[40,"Sales",4,"Male",98,4,"Sales Executive",1,16823,3,22,19]
[26,"Sales",2,"Female",90,1,"Sales Executive",3,2933,3,1,1]
[27,"Sales",2,"Female",89,2,"Sales Executive",3,6500,3,9,8]
[48,"Sales",3,"Female",58,4,"Sales Executive",4,17174,3,24,22]
[44,"Sales",4,"Male",78,2,"Sales Executive",1,5033,3,10,2]
[34,"Sales",4,"Male",85,1,"Sales Executive",1,2307,4,5,5]
[56,"Sales",2,"Male",97,1,"Sales Executive",4,2587,3,5,4]
[36,"Sales",2,"Male",33,2,"Sales Executive",2,5507,3,12,4]
[41,"Sales",3,"Female",54,2,"Sales Executive",2,4393,4,14,5]
[42,"Sales",3,"Male",83,3,"Sales Executive",1,13348,3,18,13]
[31,"Sales",2,"Female",86,2,"Sales Executive",4,6583,3,8,5]
[34,"Sales",1,"Female",75,2,"Sales Executive",4,8103,3,9,4]
[31,"Sales",3,"Female",62,1,"Sales Executive",3,3978,3,4,2]
[26,"Sales",3,"Male",61,1,"Sales Executive",4,2544,3,8,7]
[45,"Sales",4,"Male",44,2,"Sales Executive",3,5399,3,12,4]
[33,"Sales",4,"Male",43,2,"Sales Executive",3,5487,3,10,10]
[28,"Sales",2,"Male",42,2,"Sales Executive",4,6834,3,7,7]
[29,"Sales",3,"Male",45,1,"Sales Executive",1,1091,3,1,1]
[39,"Sales",4,"Female",32,2,"Sales Executive",3,5736,3,10,3]
[27,"Sales",4,"Male",41,1,"Sales Executive",2,2226,3,6,5]
[34,"Sales",4,"Male",86,2,"Sales Executive",4,5747,3,16,15]
[28,"Sales",2,"Female",84,2,"Sales Executive",3,9854,3,6,2]
[47,"Sales",4,"Male",64,2,"Sales Executive",2,5467,3,16,8]
[56,"Sales",5,"Female",89,2,"Sales Executive",1,5380,3,6,0]
[39,"Sales",2,"Male",87,2,"Sales Executive",1,5151,4,10,10]
[38,"Sales",3,"Female",58,2,"Sales Executive",2,2133,3,20,20]
[58,"Sales",3,"Female",72,4,"Sales Executive",4,17875,3,29,1]
[32,"Sales",2,"Female",47,1,"Sales Executive",3,2432,3,8,4]
[38,"Sales",2,"Male",71,1,"Sales Executive",4,4771,3,10,5]
[49,"Sales",1,"Male",42,5,"Sales Executive",4,19161,3,28,5]
[42,"Sales",4,"Male",77,2,"Sales Executive",4,5087,3,14,0]
[27,"Sales",3,"Female",58,1,"Sales Executive",2,2863,3,1,1]
[35,"Sales",4,"Male",71,2,"Sales Executive",1,5561,3,6,5]
[28,"Sales",3,"Male",49,1,"Sales Executive",3,2144,3,5,5]
[31,"Sales",2,"Male",48,1,"Sales Executive",1,3065,3,4,4]
[36,"Sales",4,"Male",66,1,"Sales Executive",2,2810,4,5,5]
[34,"Sales",3,"Male",32,3,"Sales Executive",4,9888,4,14,14]
[34,"Sales",4,"Male",39,3,"Sales Executive",3,8628,3,9,8]
[26,"Sales",3,"Male",95,1,"Sales Executive",1,2867,3,8,7]
[29,"Sales",3,"Male",89,2,"Sales Representative",1,5373,3,6,5]
[32,"Sales",4,"Female",34,2,"Sales Representative",4,6667,3,9,5]
[31,"Sales",3,"Male",48,2,"Sales Representative",1,5003,4,10,10]
[28,"Sales",3,"Male",32,1,"Sales Representative",4,2367,3,6,4]
[38,"Sales",3,"Male",59,1,"Sales Representative",1,2858,3,20,1]
[35,"Sales",4,"Female",55,2,"Sales Representative",4,5204,3,10,10]
[27,"Sales",3,"Male",44,2,"Sales Representative",4,4105,3,7,7]
[32,"Sales",4,"Male",56,2,"Sales Representative",4,9679,4,8,1]
[31,"Sales",4,"Male",63,2,"Sales Representative",4,5617,3,10,10]
[53,"Sales",4,"Male",66,3,"Sales Representative",1,10448,3,15,2]
[54,"Sales",2,"Female",67,2,"Sales Representative",3,2897,3,9,4]
[33,"Sales",2,"Male",36,2,"Sales Representative",3,5968,4,9,9]
[43,"Sales",3,"Male",30,3,"Sales Representative",3,7510,3,10,10]
[38,"Sales",4,"Male",88,1,"Sales Representative",2,2991,3,7,6]
[55,"Sales",4,"Male",71,5,"Sales Representative",2,19636,3,35,10]
[31,"Sales",1,"Female",59,1,"Sales Representative",4,1129,3,1,1]
[39,"Sales",4,"Male",77,4,"Sales Representative",1,13341,3,21,20]
[42,"Sales",2,"Male",37,2,"Sales Representative",3,4332,3,20,20]
[31,"Sales",3,"Female",40,3,"Sales Representative",3,11031,4,13,11]
[54,"Sales",3,"Female",77,2,"Sales Representative",1,4440,3,9,5]
[24,"Sales",2,"Male",45,2,"Sales Representative",3,4617,3,4,4]
[23,"Sales",2,"Male",78,1,"Sales Representative",4,2647,3,5,5]
[40,"Sales",3,"Female",73,2,"Sales Representative",3,6323,3,10,10]
[40,"Sales",2,"Female",92,2,"Sales Representative",2,5677,3,15,11]
[25,"Sales",3,"Female",82,1,"Sales Representative",2,2187,3,6,2]
[30,"Sales",2,"Male",76,1,"Sales Representative",2,3748,3,12,12]
[25,"Sales",1,"Male",57,1,"Sales Representative",3,3977,3,7,2]
[47,"Sales",3,"Male",84,3,"Sales Representative",3,8633,4,25,17]
[33,"Sales",2,"Male",59,1,"Sales Representative",3,2008,3,1,1]
[38,"Sales",4,"Male",86,2,"Sales Representative",2,4440,3,16,15]
[31,"Sales",2,"Male",54,1,"Sales Representative",3,3067,3,3,2]
[38,"Sales",4,"Male",72,2,"Sales Representative",3,5321,3,10,8]
[42,"Sales",4,"Male",35,2,"Sales Representative",1,5410,3,9,4]
[41,"Sales",3,"Male",76,1,"Sales Representative",4,2782,4,12,5]
[47,"Sales",1,"Female",98,3,"Sales Representative",2,11957,3,14,13]
[35,"Sales",4,"Male",43,1,"Sales Representative",3,2660,3,5,2]
[22,"Sales",2,"Male",63,1,"Sales Representative",3,3375,3,4,3]
[35,"Sales",4,"Male",48,2,"Sales Representative",3,5098,3,10,10]
[33,"Sales",2,"Female",95,2,"Sales Representative",4,4878,3,10,9]
[32,"Sales",4,"Female",49,1,"Sales Representative",2,2837,3,6,6]
[40,"Sales",4,"Male",83,1,"Sales Representative",4,2406,3,8,1]
[32,"Sales",4,"Male",68,1,"Sales Representative",2,2269,3,3,2]
[39,"Sales",1,"Male",52,2,"Sales Representative",4,4108,3,18,7]
[38,"Sales",3,"Female",99,3,"Sales Representative",3,13206,3,20,18]
[32,"Sales",4,"Female",48,3,"Sales Representative",4,10422,3,14,14]
[37,"Sales",3,"Female",42,3,"Sales Representative",4,13744,4,16,16]
[25,"Sales",2,"Female",85,2,"Sales Representative",3,4907,4,6,5]
[52,"Sales",4,"Male",40,1,"Sales Representative",4,3482,3,16,9]
[44,"Sales",3,"Male",42,1,"Sales Representative",4,2436,3,6,4]
[21,"Sales",1,"Male",58,1,"Sales Representative",1,2380,3,2,2]
[39,"Sales",3,"Male",87,5,"Sales Representative",4,19431,3,21,6]
[23,"Sales",3,"Male",33,1,"Sales Representative",1,1790,3,1,1]
[36,"Sales",3,"Female",94,3,"Sales Representative",4,7644,3,10,9]
[36,"Sales",2,"Female",97,2,"Sales Representative",2,5131,3,18,4]
[56,"Sales",4,"Male",57,2,"Sales Representative",3,6306,4,13,13]
[29,"Sales",4,"Male",36,1,"Sales Representative",4,4787,3,4,2]
[42,"Sales",3,"Male",56,5,"Sales Representative",3,18880,3,24,22]
[56,"Sales",2,"Male",72,1,"Sales Representative",3,2339,3,14,10]
[41,"Sales",4,"Female",60,4,"Sales Representative",2,13570,4,21,20]
[34,"Sales",3,"Female",95,2,"Sales Representative",3,6712,4,8,8]
[36,"Sales",4,"Male",88,2,"Sales Representative",4,5406,4,15,15]
[41,"Sales",3,"Male",57,2,"Sales Representative",2,8938,3,14,5]
[32,"Sales",3,"Male",78,1,"Sales Representative",1,2439,3,4,4]
[35,"Sales",4,"Female",31,3,"Sales Representative",4,8837,3,9,9]
[38,"Sales",2,"Female",100,2,"Sales Representative",4,5343,3,10,10]
[50,"Sales",4,"Male",94,2,"Sales Representative",3,6728,3,12,6]
[36,"Sales",4,"Female",100,2,"Sales Representative",4,6652,3,8,6]
[45,"Sales",3,"Female",50,2,"Sales Representative",3,4850,3,8,5]
[40,"Sales",4,"Male",52,1,"Sales Representative",3,2809,3,8,2]
[35,"Sales",4,"Male",80,2,"Sales Representative",3,5689,3,10,10]
[40,"Sales",4,"Female",98,1,"Sales Representative",3,2001,3,20,5]
[35,"Sales",4,"Female",62,1,"Sales Representative",4,2977,3,4,4]
[29,"Sales",2,"Male",46,2,"Sales Representative",2,4025,3,10,4]
[29,"Sales",4,"Female",73,1,"Sales Representative",1,3785,3,5,5]
[50,"Sales",3,"Male",39,3,"Sales Representative",1,10854,3,20,3]
[39,"Sales",1,"Female",60,4,"Sales Representative",4,12031,3,21,20]
[31,"Sales",3,"Male",74,2,"Sales Representative",1,9936,3,10,9]
[26,"Sales",3,"Female",30,1,"Sales Representative",3,2966,3,5,4]
[36,"Sales",2,"Male",41,2,"Sales Representative",4,2571,3,17,5]
[39,"Sales",1,"Male",42,3,"Sales Representative",1,9991,3,9,7]
[27,"Sales",3,"Male",87,2,"Sales Representative",2,6142,4,6,6]
[49,"Sales",3,"Male",63,2,"Sales Representative",2,5390,3,17,9]
[34,"Sales",3,"Male",82,2,"Sales Representative",3,4404,3,6,4]

{"sheet":"5.ID","index":3,"n_rows":5,"n_cols":5,"rows_kept":5,"cut":false,"hidden":true,"merged":[]}
["Do Not Alter or Delete this Worksheet or you submission cannot be graded!",null,null,null,"DirVer"]
["Action","Name","Panther ID","Date/Time","Ex8"]
["Start Ex8","Andrice",99999000,"2020-08-29T16:43:40.410","Microsoft Office User"]
["Starter Sheet","None",0,"2020-01-01"]
[null,null,null,null,"Welcome to Microsoft Excel version 16.16 build 810 running on Macintosh (Intel) Version 10.13.6 (Build 17G14019)!"]

{"sheet":"Sheet9","index":4,"n_rows":0,"n_cols":0,"rows_kept":0,"cut":false,"hidden":true,"merged":[]}